Workbook

Sheet Unidades (hidden)
A1: CODIGO | B1: UNIDAD
A2: 201 | B2: DIRECCIÓN ADMINISTRATIVA
A3: 202 | B3: DIRECCIÓN GENERAL DE CAMINOS
A4: 203 | B4: UNIDAD EJECUTORA DE CONSERVACIÓN VIAL -COVIAL-
A5: 204 | B5: DIRECCIÓN GENERAL DE TRANSPORTES
A6: 205 | B6: DIRECCIÓN GENERAL DE AERONÁUTICA CIVIL
A7: 206 | B7: UNIDAD DE CONSTRUCCIÓN DE EDIFICIOS DEL ESTADO -UCEE-
A8: 207 | B8: DIRECCIÓN GENERAL DE RADIODIFUSIÓN Y TELEVISIÓN NACIONAL
A9: 208 | B9: UNIDAD DE CONTROL Y SUPERVISIÓN DE CABLE -UNCOSU-
A10: 209 | B10: INSTITUTO NACIONAL DE SISMOLOGÍA, VULCANOLOGÍA, METEOROLOGÍA E HIDROLOGÍA -INSIVUMEH-
A11: 210 | B11: DIRECCIÓN GENERAL DE CORREOS Y TELÉGRAFOS
A12: 211 | B12: SUPERINTENDENCIA DE TELECOMUNICACIONES -SIT-
A13: 212 | B13: FONDO PARA EL DESARROLLO DE LA TELEFONÍA -FONDETEL-
A14: 214 | B14: UNIDAD PARA EL DESARROLLO DE VIVIENDA POPULAR -UDEVIPO-
A15: 216 | B15: DIRECCIÓN GENERAL DE PROTECCIÓN Y SEGURIDAD VIAL -PROVIAL-
A16: 217 | B16: FONDO SOCIAL DE SOLIDARIDAD
A17: 218 | B17: FONDO PARA LA VIVIENDA

Sheet JUNIO
A1: MINISTERIO DE COMUNICACIONES, INFRAESTRUCTURA Y VIVIENDA
A3: SEGUIMIENTO DE EJECUCIÓN FÍSICA Y FINANCIERA FUNCIONAMIENTO
A4: MES | B4: A JUNIO 2024
S6: FÍSICA | AF6: FINANCIERO
K7: FÍSICO | P7: FINANCIERO | S7: ENERO | U7: FEBRERO | W7: MARZO | Y7: ABRIL | AA7: MAYO | AC7: JUNIO | AE7: JULIO | AF7: ENERO | AI7: FEBRERO | AL7: MARZO | AO7: ABRIL | AR7: MAYO | AU7: JUNIO | AX7: JULIO
A8: UNIDAD | B8: PG | C8: SP | D8: PY | E8: ACT | F8: OB | G8: PRODUCTO | I8: SUBPRODUCTO | J8: NOMBRE | K8: UNIDAD DE MEDIDA | L8: INICIAL | M8: MODIFICADO | N8: VIGENTE | O8: EJECUTADO ACUMULADO | P8: INICIAL | Q8: VIGENTE | R8: EJECUTADO ACUMULADO | S8: Modificado | T8: Ejecutado | U8: Modificado | V8: Ejecutado | W8: Modificado | X8: Ejecutado | Y8: Modificado | Z8: Ejecutado | AA8: Modificado | AB8: Ejecutado | AC8: Modificado | AD8: Ejecutado | AE8: Modificado | AF8: MODIFICADO | AG8: EJECUTADO | AH8: EJECUTADO NOMINA | AI8: MODIFICADO | AJ8: EJECUTADO | AK8: EJECUTADO NOMINA | AL8: MODIFICADO | AM8: EJECUTADO | AN8: EJECUTADO NOMINA | AO8: MODIFICADO | AP8: EJECUTADO | AQ8: EJECUTADO NOMINA | AR8: MODIFICADO | AS8: EJECUTADO | AT8: EJECUTADO NOMINA | AU8: MODIFICADO | AV8: EJECUTADO | AW8: EJECUTADO NOMINA | AX8: MODIFICADO
A9: 201 | B9: 01 | C9: 00 | D9: 000 | E9: 003 | F9: 000 | G9: 000-001 | H9: Servicios Financieros | K9: Evento | L9: 31 | M9: 0 | N9: 31 | O9: =SUM(T9:AE9) -> 29 | P9: 15083171 | Q9: 14118505 | R9: =+AG9+AH9+AJ9+AK9+AM9+AN9+AP9+AQ9+AS9+AT9+AV9+AW9 -> 4595165.27 | S9: 0 | T9: 29 | U9: 0 | V9: 0 | W9: 0 | X9: 0 | Y9: 0 | Z9: 0 | AA9: 0 | AB9: 0 | AC9: 0 | AD9: 0 | AE9: 0 | AF9: 70000 | AG9: 0 | AH9: 326042.46 | AI9: 0 | AJ9: 310365.39 | AK9: 298215.79 | AL9: 0 | AM9: 1454795.05 | AN9: 307428.84 | AO9: 0 | AP9: 166574.08 | AQ9: 351190.67 | AR9: 0 | AS9: 14567 | AT9: 347074 | AU9: 0 | AV9: 689837.99 | AW9: =+AW10 -> 329074 | AX9: 130562
A10: 201 | B10: 01 | C10: 00 | D10: 000 | E10: 003 | F10: 000 | I10: 000-001-0001 | J10: Servicios Financieros | K10: Evento | L10: 31 | M10: 0 | N10: 31 | O10: =SUM(T10:AE10) -> 29 | P10: 15083171 | Q10: 14118505 | R10: =+AG10+AH10+AJ10+AK10+AM10+AN10+AP10+AQ10+AS10+AT10+AV10+AW10 -> 4595165.27 | S10: 0 | T10: 29 | U10: 0 | V10: 0 | W10: 0 | X10: 0 | Y10: 0 | Z10: 0 | AA10: 0 | AB10: 0 | AC10: 0 | AD10: 0 | AE10: 0 | AF10: 70000 | AG10: 0 | AH10: 326042.46 | AI10: 0 | AJ10: 310365.39 | AK10: 298215.79 | AL10: 0 | AM10: 1454795.05 | AN10: 307428.84 | AO10: 0 | AP10: 166574.08 | AQ10: 351190.67 | AR10: 0 | AS10: 14567 | AT10: 347074 | AU10: 0 | AV10: 689837.99 | AW10: 329074 | AX10: 130562
A11: 201 | B11: 01 | C11: 00 | D11: 000 | E11: 002 | F11: 000 | G11: 000-003 | H11: Servicios Administrativos | K11: Evento | L11: 319 | M11: 0 | N11: 319 | O11: =SUM(T11:AE11) -> 66 | P11: 15893462 | Q11: 16456687 | R11: 5952785.06 | S11: 0 | T11: 61 | U11: 0 | V11: 5 | W11: 0 | X11: 0 | Y11: 0 | Z11: 0 | AA11: 0 | AB11: 0 | AC11: 0 | AD11: 0 | AE11: 0 | AF11: -32100 | AG11: 281464.44 | AH11: 587135.55 | AI11: 0 | AJ11: 182667.58 | AK11: 568718.8 | AL11: 0 | AM11: 138098.83 | AN11: 649846.8 | AO11: 0 | AP11: 359685.12 | AQ11: 667915.18 | AR11: 0 | AS11: 596398.17 | AT11: 679391.87 | AU11: 0 | AV11: 568902.86 | AW11: 672559.86 | AX11: 586459
A12: 201 | B12: 01 | C12: 00 | D12: 000 | E12: 002 | F12: 000 | I12: 000-003-0001 | J12: Servicios Administrativos | K12: Evento | L12: 319 | M12: 0 | N12: 319 | O12: =SUM(T12:AE12) -> 66 | P12: 15893462 | Q12: 16456687 | R12: 5952785.06 | S12: 0 | T12: 61 | U12: 0 | V12: 5 | W12: 0 | X12: 0 | Y12: 0 | Z12: 0 | AA12: 0 | AB12: 0 | AC12: 0 | AD12: 0 | AE12: 0 | AF12: -32100 | AG12: 281464.44 | AH12: 587135.55 | AI12: 0 | AJ12: 182667.58 | AK12: 568718.8 | AL12: 0 | AM12: 138098.83 | AN12: 649846.8 | AO12: 0 | AP12: 359685.12 | AQ12: 667915.18 | AR12: 0 | AS12: 596398.17 | AT12: 679391.87 | AU12: 0 | AV12: 568902.86 | AW12: 672559.86 | AX12: 586459
A13: 201 | B13: 99 | C13: 00 | D13: 000 | E13: 001 | F13: 000 | G13: 000-004 | H13: Personas Jurídicas Beneficiadas Con Aportes Y/O Cuotas Para Transporte | K13: Aporte | L13: 13 | M13: 0 | N13: 13 | O13: =SUM(T13:AE13) -> 3 | P13: 5874520 | Q13: 5874520 | R13: 2861258 | S13: 0 | T13: 1 | U13: 0 | V13: 2 | W13: 0 | X13: 0 | Y13: 0 | Z13: 0 | AA13: 0 | AB13: 0 | AC13: 0 | AD13: 0 | AE13: 0 | AF13: 0 | AG13: 427043 | AH13: 0 | AI13: 0 | AJ13: 427043 | AL13: 0 | AM13: 524545 | AO13: 0 | AP13: 507834 | AQ13: 0 | AR13: 0 | AS13: 392582 | AU13: 0 | AV13: 582211 | AX13: 0
A14: 201 | B14: 99 | C14: 00 | D14: 000 | E14: 001 | F14: 000 | I14: 000-004-0001 | J14: Personas Jurídicas Beneficiadas Con Aportes Y/O Cuotas Para Transporte | K14: Aporte | L14: 13 | M14: 0 | N14: 13 | O14: =SUM(T14:AE14) -> 3 | P14: 5874520 | Q14: 5874520 | R14: 2861258 | S14: 0 | T14: 1 | U14: 0 | V14: 2 | W14: 0 | X14: 0 | Y14: 0 | Z14: 0 | AA14: 0 | AB14: 0 | AC14: 0 | AD14: 0 | AE14: 0 | AF14: 0 | AG14: 427043 | AI14: 0 | AJ14: 427043 | AL14: 0 | AM14: 524545 | AO14: 0 | AP14: 507834 | AR14: 0 | AS14: 392582 | AU14: 0 | AV14: 582211 | AX14: 0
A15: 201 | B15: 99 | C15: 00 | D15: 000 | E15: 002 | F15: 000 | G15: 000-005 | H15: Personas Jurídicas Beneficiadas Con Aportes Y/O Cuotas Para Comunicaciones | K15: Aporte | L15: 1 | M15: 0 | N15: 1 | O15: =SUM(T15:AE15) -> 0 | P15: 55159 | Q15: 59159 | R15: 59102.32 | S15: 0 | T15: 0 | U15: 0 | V15: 0 | W15: 0 | X15: 0 | Y15: 0 | Z15: 0 | AA15: 0 | AB15: 0 | AC15: 0 | AD15: 0 | AE15: 0 | AF15: 0 | AG15: 0 | AH15: 0 | AI15: 0 | AJ15: 0 | AK15: 0 | AL15: 0 | AM15: 0 | AN15: 0 | AO15: 0 | AP15: 0 | AQ15: 0 | AR15: 4000 | AS15: 0 | AU15: 0 | AV15: 59102.32 | AX15: 0
A16: 201 | B16: 99 | C16: 00 | D16: 000 | E16: 002 | F16: 000 | I16: 000-005-0001 | J16: Personas Jurídicas Beneficiadas Con Aportes Y/O Cuotas Para Comunicaciones | K16: Aporte | L16: 1 | M16: 0 | N16: 1 | O16: =SUM(T16:AE16) -> 0 | P16: 55159 | Q16: 59159 | R16: 59102.32 | S16: 0 | T16: 0 | U16: 0 | V16: 0 | W16: 0 | X16: 0 | Y16: 0 | Z16: 0 | AA16: 0 | AB16: 0 | AC16: 0 | AD16: 0 | AE16: 0 | AF16: 0 | AG16: 0 | AI16: 0 | AJ16: 0 | AL16: 0 | AM16: 0 | AO16: 0 | AP16: 0 | AR16: 4000 | AS16: 0 | AU16: 0 | AV16: 59102.32 | AX16: 0
A17: 201 | B17: 99 | C17: 00 | D17: 000 | E17: 003 | F17: 000 | G17: 000-006 | H17: Personas Jurídicas Beneficiadas Con Aportes Y/O Cuotas Para Control Del Medio Ambiente | K17: Aporte | L17: 1 | M17: 0 | N17: 1 | O17: =SUM(T17:AE17) -> 0 | P17: 400000 | Q17: 396000 | R17: 390612 | S17: 0 | T17: 0 | U17: 0 | V17: 0 | W17: 0 | X17: 0 | Y17: 0 | Z17: 0 | AA17: 0 | AB17: 0 | AC17: 0 | AD17: 0 | AE17: 0 | AF17: 0 | AG17: 0 | AH17: 0 | AI17: 0 | AJ17: 390612 | AK17: 0 | AL17: 0 | AM17: 0 | AN17: 0 | AO17: 0 | AP17: 0 | AQ17: 0 | AR17: -4000 | AS17: 0 | AU17: 0 | AV17: 0 | AX17: 0
A18: 201 | B18: 99 | C18: 00 | D18: 000 | E18: 003 | F18: 000 | I18: 000-006-0001 | J18: Personas Jurídicas Beneficiadas Con Aportes Y/O Cuotas Para Control Del Medio Ambiente | K18: Aporte | L18: 1 | M18: 0 | N18: 1 | O18: =SUM(T18:AE18) -> 0 | P18: 400000 | Q18: 396000 | R18: 390612 | S18: 0 | T18: 0 | U18: 0 | V18: 0 | W18: 0 | X18: 0 | Y18: 0 | Z18: 0 | AA18: 0 | AB18: 0 | AC18: 0 | AD18: 0 | AE18: 0 | AF18: 0 | AG18: 0 | AI18: 0 | AJ18: 390612 | AL18: 0 | AM18: 0 | AO18: 0 | AP18: 0 | AR18: -4000 | AS18: 0 | AU18: 0 | AV18: 0 | AX18: 0
A19: 201 | B19: 01 | C19: 00 | D19: 000 | E19: 001 | F19: 000 | G19: 000-009 | H19: Dirección Superior | K19: Evento | L19: 216 | M19: 0 | N19: 216 | O19: =SUM(T19:AE19) -> 118 | P19: 25693688 | Q19: 30006172 | R19: 12600473.72 | S19: 0 | T19: 118 | U19: 0 | V19: 0 | W19: 0 | X19: 0 | Y19: 0 | Z19: 0 | AA19: 0 | AB19: 0 | AC19: 0 | AD19: 0 | AE19: 0 | AF19: -37900 | AG19: 0 | AH19: 2015828.02 | AI19: 0 | AJ19: 0 | AK19: 1995750.32 | AL19: 0 | AM19: 1559.8 | AN19: 1911508.41 | AO19: 0 | AP19: 4584.75 | AQ19: 2184372.87 | AR19: 0 | AS19: 90963.99 | AT19: 2127501.16 | AU19: 0 | AV19: 51241.95 | AW19: 2217162.45 | AX19: 3194022
A20: 201 | B20: 01 | C20: 00 | D20: 000 | E20: 001 | F20: 000 | I20: 000-009-0001 | J20: Dirección Superior | K20: Evento | L20: 216 | M20: 0 | N20: 216 | O20: =SUM(T20:AE20) -> 118 | P20: 25693688 | Q20: 30006172 | R20: 12600473.72 | S20: 0 | T20: 118 | U20: 0 | V20: 0 | W20: 0 | X20: 0 | Y20: 0 | Z20: 0 | AA20: 0 | AB20: 0 | AC20: 0 | AD20: 0 | AE20: 0 | AF20: -37900 | AG20: 0 | AH20: 2015828.02 | AI20: 0 | AJ20: 0 | AK20: 1995750.32 | AL20: 0 | AM20: 1559.8 | AN20: 1911508.41 | AO20: 0 | AP20: 4584.75 | AQ20: 2184372.87 | AR20: 0 | AS20: 90963.99 | AT20: 2127501.16 | AU20: 0 | AV20: 51241.95 | AW20: 2217162.45 | AX20: 3194022
A21: 202 | B21: 11 | C21: 00 | D21: 000 | E21: 001 | F21: 000 | G21: 017-003 | H21: Dirección Y Coordinación | K21: Evento | L21: 472 | M21: -1 | N21: 473 | O21: =SUM(T21:AE21) -> 286 | P21: 89558631 | Q21: 99558565 | R21: 30283416.48 | S21: 0 | T21: 0 | U21: 0 | V21: 0 | W21: 0 | X21: 0 | Y21: 0 | Z21: 0 | AA21: 1 | AB21: 280 | AC21: 0 | AD21: 5 | AE21: 0 | AF21: 0 | AG21: 24488 | AH21: 3145568.69 | AI21: 0 | AJ21: 59413.27 | AK21: 3949344.08 | AL21: 0 | AM21: 2328439.64 | AN21: 3494686.58 | AO21: 0 | AP21: 212777.65 | AQ21: 3372825.9 | AR21: 0 | AS21: 3499677.75 | AT21: 3317984.1 | AU21: 795000 | AV21: 3142299.49 | AW21: 3735911.33 | AX21: 0
A22: 202 | B22: 11 | C22: 00 | D22: 000 | E22: 001 | F22: 000 | I22: 017-003-0001 | J22: Dirección Y Coordinación | K22: Evento | L22: 472 | M22: -1 | N22: 473 | O22: =SUM(T22:AE22) -> 286 | P22: 89558631 | Q22: 99558565 | R22: 30283416.48 | S22: 0 | T22: 0 | U22: 0 | V22: 0 | W22: 0 | X22: 0 | Y22: 0 | Z22: 0 | AA22: 1 | AB22: 280 | AC22: 0 | AD22: 5 | AE22: 0 | AF22: 0 | AG22: 24488 | AH22: 3145568.69 | AI22: 0 | AJ22: 59413.27 | AK22: 3949344.08 | AL22: 0 | AM22: 2328439.64 | AN22: 3494686.58 | AO22: 0 | AP22: 212777.65 | AQ22: 3372825.9 | AR22: 0 | AS22: 3499677.75 | AT22: 3317984.1 | AU22: 795000 | AV22: 3142299.49 | AW22: 3735911.33 | AX22: 0
A23: 202 | B23: 11 | C23: 00 | D23: 000 | E23: 002 | F23: 000 | G23: 017-005 | H23: Red Vial Con Servicios De Mantenimiento | K23: Kilómetro | L23: 2657 | M23: 0 | N23: 2657 | O23: =SUM(T23:AE23) -> 401 | P23: 201689369 | Q23: 189189435 | R23: 52871633.51 | S23: 0 | T23: 0 | U23: 0 | V23: 0 | W23: 0 | X23: 0 | Y23: 0 | Z23: 0 | AA23: 0 | AB23: 188 | AC23: 0 | AD23: 213 | AE23: 0 | AF23: 0 | AG23: 4288.57 | AH23: 7506897.83 | AI23: 0 | AJ23: 30557.87 | AK23: 6646781.61 | AL23: 0 | AM23: -30200 | AN23: =+AN24 -> 6784456.11 | AO23: 0 | AP23: 985130.62 | AQ23: 6631279.1 | AR23: 0 | AS23: 5773234.02 | AT23: 6704247.32 | AU23: -795000 | AV23: 5289541.5 | AW23: 6545418.96 | AX23: -2500000
A24: 202 | B24: 11 | C24: 00 | D24: 000 | E24: 002 | F24: 000 | I24: 017-005-0001 | J24: Red Vial Con Servicios De Mantenimiento | K24: Kilómetro | L24: 2657 | M24: 0 | N24: 2657 | O24: =SUM(T24:AE24) -> 401 | P24: 201689369 | Q24: 189189435 | R24: 52871633.51 | S24: 0 | T24: 0 | U24: 0 | V24: 0 | W24: 0 | X24: 0 | Y24: 0 | Z24: 0 | AA24: 0 | AB24: 188 | AC24: 0 | AD24: 213 | AE24: 0 | AF24: 0 | AG24: 4288.57 | AH24: 7506897.83 | AI24: 0 | AJ24: 30557.87 | AK24: 6646781.61 | AL24: 0 | AM24: -30200 | AN24: 6784456.11 | AO24: 0 | AP24: 985130.62 | AQ24: 6631279.1 | AR24: 0 | AS24: 5773234.02 | AT24: 6704247.32 | AU24: -795000 | AV24: 5289541.5 | AW24: 6545418.96 | AX24: -2500000
A25: 202 | B25: 11 | C25: 03 | D25: 000 | E25: 001 | F25: 000 | G25: 017-008 | H25: Red Vial De Rutas Centroamericanas Con Servicios De Mantenimiento | K25: Kilómetro | L25: 82 | M25: 0 | N25: 82 | O25: =SUM(T25:AE25) -> 0 | P25: 311854271 | Q25: 311854271 | R25: 215488183.1 | S25: 0 | T25: 0 | U25: 0 | V25: 0 | W25: 0 | X25: 0 | Y25: 0 | Z25: 0 | AA25: 0 | AB25: 0 | AC25: 0 | AD25: 0 | AE25: 0 | AF25: 0 | AG25: 215488183.1 | AI25: 0 | AJ25: 0 | AK25: 0 | AL25: 0 | AM25: 0 | AN25: 0 | AO25: 0 | AP25: 0 | AQ25: 0 | AR25: 0 | AS25: 0 | AU25: 0 | AV25: 0 | AX25: 0
A26: 202 | B26: 11 | C26: 03 | D26: 000 | E26: 001 | F26: 000 | I26: 017-008-0001 | J26: Red Vial Con Servicios De Rehabilitación | K26: Kilómetro | L26: 82 | M26: 0 | N26: 82 | O26: =SUM(T26:AE26) -> 0 | P26: 311854271 | Q26: 311854271 | R26: 215488183.1 | S26: 0 | T26: 0 | U26: 0 | V26: 0 | W26: 0 | X26: 0 | Y26: 0 | Z26: 0 | AA26: 0 | AB26: 0 | AC26: 0 | AD26: 0 | AE26: 0 | AF26: 0 | AG26: 215488183.1 | AI26: 0 | AJ26: 0 | AL26: 0 | AM26: 0 | AO26: 0 | AP26: 0 | AR26: 0 | AS26: 0 | AU26: 0 | AV26: 0 | AX26: 0
A27: 202 | B27: 94 | C27: 14 | D27: 000 | E27: 001 | F27: 000 | G27: 000-049 | H27: Intervenciones Realizadas Para La Atención De La Emergencia Por Época Lluviosa, Temporada Ciclónica Y Sistema De Baja Presión | K27: Documento | L27: 0 | M27: -4 | N27: 4 | O27: =SUM(T27:AE27) -> -6 | P27: 0 | Q27: 29937211 | R27: 29495532.24 | S27: 10 | T27: 0 | U27: 0 | V27: 0 | W27: 10 | X27: 0 | Y27: -10 | Z27: 0 | AA27: 0 | AB27: 0 | AC27: 0 | AD27: 0 | AE27: -6 | AF27: 48648998 | AG27: 0 | AI27: 0 | AJ27: 0 | AK27: 0 | AL27: 0 | AM27: 0 | AN27: 0 | AO27: 0 | AP27: 0 | AQ27: 0 | AR27: 0 | AS27: 0 | AU27: 0 | AV27: 29495532.24 | AX27: -18711787
A28: 202 | B28: 94 | C28: 14 | D28: 000 | E28: 001 | F28: 000 | I28: 000-049-0001 | J28: Intervenciones Realizadas Para La Atención De La Emergencia Por Época Lluviosa, Temporada Ciclónica Y Sistema De Baja Presión | K28: Documento | L28: 0 | M28: -4 | N28: 4 | O28: =SUM(T28:AE28) -> -6 | P28: 0 | Q28: 29937211 | R28: 29495532.24 | S28: 10 | T28: 0 | U28: 0 | V28: 0 | W28: 10 | X28: 0 | Y28: -10 | Z28: 0 | AA28: 0 | AB28: 0 | AC28: 0 | AD28: 0 | AE28: -6 | AF28: 48648998 | AG28: 0 | AI28: 0 | AJ28: 0 | AL28: 0 | AM28: 0 | AO28: 0 | AP28: 0 | AR28: 0 | AS28: 0 | AU28: 0 | AV28: 29495532.24 | AX28: -18711787
A29: 202 | B29: 94 | C29: 15 | D29: 000 | E29: 001 | F29: 000 | G29: 000-050 | H29: Intervenciones Realizadas Para La Atención De La Emergencia Provocada Por Los Efectos De La Época Lluviosa Y El Ciclón Tropical Julia | K29: Documento | L29: 0 | M29: -12 | N29: 12 | O29: =SUM(T29:AE29) -> -1 | P29: 0 | Q29: 20062789 | R29: 0 | S29: 13 | T29: 0 | U29: 0 | V29: 0 | W29: 13 | X29: 0 | Y29: -13 | Z29: 0 | AA29: 0 | AB29: 0 | AC29: 0 | AD29: 0 | AE29: -1 | AF29: 46351002 | AG29: 0 | AI29: 0 | AJ29: 0 | AK29: 0 | AL29: 0 | AM29: 0 | AN29: 0 | AO29: 0 | AP29: 0 | AQ29: 0 | AR29: 0 | AS29: 0 | AU29: 0 | AV29: 0 | AX29: -26288213
A30: 202 | B30: 94 | C30: 15 | D30: 000 | E30: 001 | F30: 000 | I30: 000-050-0001 | J30: Intervenciones Realizadas Para La Atención De La Emergencia Provocada Por Los Efectos De La Época Lluviosa Y El Ciclón Tropical Julia | K30: Documento | L30: 0 | M30: -12 | N30: 12 | O30: =SUM(T30:AE30) -> -1 | P30: 0 | Q30: 20062789 | R30: 0 | S30: 13 | T30: 0 | U30: 0 | V30: 0 | W30: 13 | X30: 0 | Y30: -13 | Z30: 0 | AA30: 0 | AB30: 0 | AC30: 0 | AD30: 0 | AE30: -1 | AF30: 46351002 | AG30: 0 | AI30: 0 | AJ30: 0 | AL30: 0 | AM30: 0 | AO30: 0 | AP30: 0 | AR30: 0 | AS30: 0 | AU30: 0 | AV30: 0 | AX30: -26288213
A31: 202 | B31: 94 | C31: 16 | D31: 000 | E31: 001 | F31: 000 | G31: 000-053 | H31: Intervenciones Realizadas Para La Atención De Daños Y Efectos Causados Por El Alto Índice De Lluvias Y Saturación Actual De Los Suelos En El Territorio Nacional (Dg 2-2024) | K31: Documento | L31: 0 | M31: -3 | N31: 3 | O31: =SUM(T31:AE31) -> 3 | P31: 0 | Q31: 100000000 | R31: 0 | S31: 0 | T31: 0 | U31: 0 | V31: 0 | W31: 0 | X31: 0 | Y31: 0 | Z31: 0 | AA31: 0 | AB31: 0 | AC31: 0 | AD31: 0 | AE31: 3 | AF31: 0 | AG31: 0 | AI31: 0 | AJ31: 0 | AK31: 0 | AL31: 0 | AM31: 0 | AN31: 0 | AO31: 0 | AP31: 0 | AQ31: 0 | AR31: 0 | AS31: 0 | AU31: 0 | AV31: 0 | AX31: 100000000
A32: 202 | B32: 94 | C32: 16 | D32: 000 | E32: 001 | F32: 000 | I32: 000-053-0001 | J32: Intervenciones Realizadas Para La Atención De Daños Y Efectos Causados Por El Alto Índice De Lluvias Y Saturación Actual De Los Suelos En El Territorio Nacional (Dg 2-2024) | K32: Documento | L32: 0 | M32: -3 | N32: 3 | O32: =SUM(T32:AE32) -> 3 | P32: 0 | Q32: 100000000 | R32: 0 | S32: 0 | T32: 0 | U32: 0 | V32: 0 | W32: 0 | X32: 0 | Y32: 0 | Z32: 0 | AA32: 0 | AB32: 0 | AC32: 0 | AD32: 0 | AE32: 3 | AF32: 0 | AG32: 0 | AI32: 0 | AJ32: 0 | AL32: 0 | AM32: 0 | AO32: 0 | AP32: 0 | AR32: 0 | AS32: 0 | AU32: 0 | AV32: 0 | AX32: 100000000
A33: 203 | B33: 11 | C33: 01 | D33: 000 | E33: 001 | F33: 000 | G33: 017-001 | H33: Red Vial Pavimentada Con Servicios De Mantenimiento (Fideicomiso) | K33: Documento | L33: 11 | M33: -15 | N33: 26 | O33: =SUM(T33:AE33) -> 15 | P33: 5240000 | Q33: 89497370 | R33: 29860632.13 | S33: 0 | T33: 0 | U33: 0 | V33: 0 | W33: 0 | X33: 0 | Y33: 1 | Z33: 0 | AA33: 14 | AB33: 0 | AC33: 0 | AD33: 0 | AE33: 0 | AF33: 0 | AG33: 0 | AH33: 0 | AI33: 0 | AJ33: 0 | AL33: 0 | AM33: 0 | AO33: 0 | AP33: 0 | AR33: 84257370 | AS33: 29860632.13 | AU33: 0 | AV33: 0 | AX33: 0
A34: 203 | B34: 11 | C34: 01 | D34: 000 | E34: 001 | F34: 000 | I34: 017-001-0003 | J34: Red Vial Pavimentada Con Servicios De Mantenimiento (Fideicomiso) | K34: Documento | L34: 11 | M34: -15 | N34: 26 | O34: =SUM(T34:AE34) -> 15 | P34: 5240000 | Q34: 89497370 | R34: 29860632.13 | S34: 0 | T34: 0 | U34: 0 | V34: 0 | W34: 0 | X34: 0 | Y34: 1 | Z34: 0 | AA34: 14 | AB34: 0 | AC34: 0 | AD34: 0 | AE34: 0 | AF34: 0 | AG34: 0 | AI34: 0 | AJ34: 0 | AL34: 0 | AM34: 0 | AO34: 0 | AP34: 0 | AR34: 84257370 | AS34: 29860632.13 | AU34: 0 | AV34: 0 | AX34: 0
A35: 203 | B35: 11 | C35: 01 | D35: 000 | E35: 002 | F35: 000 | G35: 017-002 | H35: Red Vial Pavimentada Con Mantenimiento (Ejecución Normal) | K35: Kilómetro | L35: 6453 | M35: -2 | N35: 6455 | O35: =SUM(T35:AE35) -> 840 | P35: 793952274 | Q35: 797078821 | R35: 149066483.6 | S35: -170 | T35: 0 | U35: 0 | V35: 0 | W35: 79 | X35: 137 | Y35: 90 | Z35: 400 | AA35: 3 | AB35: 76 | AC35: 0 | AD35: 55 | AE35: 0 | AF35: 0 | AG35: 6569490.93 | AH35: 0 | AI35: 0 | AJ35: 0 | AK35: 0 | AL35: -99523 | AM35: 13588143.88 | AN35: 0 | AO35: 0 | AP35: 42364617.95 | AQ35: 0 | AR35: -57002126 | AS35: 42211102.24 | AU35: 60453514 | AV35: 44333128.61 | AX35: 0
A36: 203 | B36: 11 | C36: 01 | D36: 000 | E36: 002 | F36: 000 | I36: 017-002-0001 | J36: Red Vial Pavimentada Con Mantenimiento (Ejecución Normal) | K36: Kilómetro | L36: 6453 | M36: -2 | N36: 6455 | O36: =SUM(T36:AE36) -> 840 | P36: 793952274 | Q36: 797078821 | R36: 149066483.6 | S36: -170 | T36: 0 | U36: 0 | V36: 0 | W36: 79 | X36: 137 | Y36: 90 | Z36: 400 | AA36: 3 | AB36: 76 | AC36: 0 | AD36: 55 | AE36: 0 | AF36: 0 | AG36: 6569490.93 | AI36: 0 | AJ36: 0 | AL36: -99523 | AM36: 13588143.88 | AO36: 0 | AP36: 42364617.95 | AR36: -57002126 | AS36: 42211102.24 | AU36: 60453514 | AV36: 44333128.61 | AX36: 0
A37: 203 | B37: 11 | C37: 00 | D37: 000 | E37: 001 | F37: 000 | G37: 017-003 | H37: Dirección Y Coordinación | K37: Evento | L37: 120 | M37: -178 | N37: 298 | O37: =SUM(T37:AE37) -> 1 | P37: 27407860 | Q37: 27407860 | R37: 7630954.09 | S37: 178 | T37: 0 | U37: 0 | V37: 0 | W37: 0 | X37: 0 | Y37: 0 | Z37: 0 | AA37: 0 | AB37: 0 | AC37: 0 | AD37: 1 | AE37: 0 | AF37: 0 | AG37: 0 | AH37: 1154079.2 | AI37: 0 | AJ37: 68952.47 | AK37: 919443.66 | AL37: 0 | AM37: 168913.79 | AN37: 992669.88 | AO37: 0 | AP37: 215441.41 | AQ37: 1062179.98 | AR37: 0 | AS37: 224174.11 | AT37: 1077250 | AU37: 0 | AV37: 542630.49 | AW37: 1205219.1 | AX37: 0
A38: 203 | B38: 11 | C38: 00 | D38: 000 | E38: 001 | F38: 000 | I38: 017-003-0001 | J38: Dirección Y Coordinación | K38: Evento | L38: 120 | M38: -178 | N38: 298 | O38: =SUM(T38:AE38) -> 1 | P38: 27407860 | Q38: 27407860 | R38: 7630954.09 | S38: 178 | T38: 0 | U38: 0 | V38: 0 | W38: 0 | X38: 0 | Y38: 0 | Z38: 0 | AA38: 0 | AB38: 0 | AC38: 0 | AD38: 1 | AE38: 0 | AF38: 0 | AG38: 0 | AH38: 1154079.2 | AI38: 0 | AJ38: 68952.47 | AK38: 919443.66 | AL38: 0 | AM38: 168913.79 | AN38: 992669.88 | AO38: 0 | AP38: 215441.41 | AQ38: 1062179.98 | AR38: 0 | AS38: 224174.11 | AT38: 1077250 | AU38: 0 | AV38: 542630.49 | AW38: 1205219.1 | AX38: 0
A39: 203 | B39: 11 | C39: 02 | D39: 000 | E39: 001 | F39: 000 | G39: 017-006 | H39: Red Vial Rural Con Servicios De Mantenimiento (Fideicomiso) | K39: Documento | L39: 10 | M39: 0 | N39: 10 | O39: =SUM(T39:AE39) -> 0 | P39: 5000000 | Q39: 5000000 | R39: 0 | S39: 0 | T39: 0 | U39: 0 | V39: 0 | W39: 0 | X39: 0 | Y39: 0 | Z39: 0 | AA39: 0 | AB39: 0 | AC39: 0 | AD39: 0 | AE39: 0 | AF39: 0 | AG39: 0 | AH39: 0 | AI39: 0 | AJ39: 0 | AL39: 0 | AM39: 0 | AO39: 0 | AP39: 0 | AR39: 0 | AS39: 0 | AU39: 0 | AV39: 0 | AX39: 0
A40: 203 | B40: 11 | C40: 02 | D40: 000 | E40: 001 | F40: 000 | I40: 017-006-0002 | J40: Red Vial Rural Con Servicios De Mantenimiento (Fideicomiso) | K40: Documento | L40: 10 | M40: 0 | N40: 10 | O40: =SUM(T40:AE40) -> 0 | P40: 5000000 | Q40: 5000000 | R40: 0 | S40: 0 | T40: 0 | U40: 0 | V40: 0 | W40: 0 | X40: 0 | Y40: 0 | Z40: 0 | AA40: 0 | AB40: 0 | AC40: 0 | AD40: 0 | AE40: 0 | AF40: 0 | AG40: 0 | AI40: 0 | AJ40: 0 | AL40: 0 | AM40: 0 | AO40: 0 | AP40: 0 | AR40: 0 | AS40: 0 | AU40: 0 | AV40: 0 | AX40: 0
A41: 203 | B41: 11 | C41: 02 | D41: 000 | E41: 002 | F41: 000 | G41: 017-007 | H41: Red Vial Terciaria Con Mantenimiento (Ejecución Normal) | K41: Kilómetro | L41: 5349 | M41: -560 | N41: 5909 | O41: =SUM(T41:AE41) -> 134 | P41: 550792866 | Q41: 463408949 | R41: 7495684.93 | S41: 558 | T41: 0 | U41: 0 | V41: 0 | W41: 1 | X41: 78 | Y41: 0 | Z41: 0 | AA41: 1 | AB41: 34 | AC41: 0 | AD41: 20 | AE41: 0 | AF41: 0 | AG41: 56334.81 | AH41: 0 | AI41: 0 | AJ41: 0 | AK41: 0 | AL41: 99523 | AM41: 5462127.89 | AN41: 0 | AO41: 0 | AP41: 0 | AQ41: 0 | AR41: -27255244 | AS41: 1971999.56 | AU41: -60453514 | AV41: 5222.67 | AX41: 0
A42: 203 | B42: 11 | C42: 02 | D42: 000 | E42: 002 | F42: 000 | I42: 017-007-0001 | J42: Red Vial Terciaria Con Mantenimiento (Ejecución Normal) | K42: Kilómetro | L42: 5349 | M42: -560 | N42: 5909 | O42: =SUM(T42:AE42) -> 134 | P42: 550792866 | Q42: 463408949 | R42: 7495684.93 | S42: 558 | T42: 0 | U42: 0 | V42: 0 | W42: 1 | X42: 78 | Y42: 0 | Z42: 0 | AA42: 1 | AB42: 34 | AC42: 0 | AD42: 20 | AE42: 0 | AF42: 0 | AG42: 56334.81 | AI42: 0 | AJ42: 0 | AL42: 99523 | AM42: 5462127.89 | AO42: 0 | AP42: 0 | AR42: -27255244 | AS42: 1971999.56 | AU42: -60453514 | AV42: 5222.67 | AX42: 0
A43: 204 | B43: 12 | C43: 00 | D43: 000 | E43: 001 | F43: 000 | G43: 018-005 | H43: Dirección Y Coordinación | K43: Evento | L43: 85 | M43: -172 | N43: 257 | O43: =SUM(T43:AE43) -> 75 | P43: 12264729 | Q43: 11624362 | R43: 5434057.71 | S43: 172 | T43: 75 | U43: 0 | V43: 0 | W43: 0 | X43: 0 | Y43: 0 | Z43: 0 | AA43: 0 | AB43: 0 | AC43: 0 | AD43: 0 | AE43: 0 | AF43: -692765 | AG43: 142003.03 | AH43: 918573.03 | AI43: 0 | AJ43: -91883.18 | AK43: 884768.59 | AL43: 0 | AM43: 98336.96 | AN43: 651533.23 | AO43: 148002 | AP43: 92559.81 | AQ43: 719768.09 | AR43: 0 | AS43: 306625.05 | AT43: 811119.61 | AU43: -45259 | AV43: 221443.84 | AW43: 679209.65 | AX43: -50075
A44: 204 | B44: 12 | C44: 00 | D44: 000 | E44: 001 | F44: 000 | I44: 018-005-0001 | J44: Dirección Y Coordinación | K44: Evento | L44: 85 | M44: -172 | N44: 257 | O44: =SUM(T44:AE44) -> 75 | P44: 12264729 | Q44: 11624362 | R44: 5434057.71 | S44: 172 | T44: 75 | U44: 0 | V44: 0 | W44: 0 | X44: 0 | Y44: 0 | Z44: 0 | AA44: 0 | AB44: 0 | AC44: 0 | AD44: 0 | AE44: 0 | AF44: -692765 | AG44: 142003.03 | AH44: 918573.03 | AI44: 0 | AJ44: -91883.18 | AK44: 884768.59 | AL44: 0 | AM44: 98336.96 | AN44: 651533.23 | AO44: 148002 | AP44: 92559.81 | AQ44: 719768.09 | AR44: 0 | AS44: 306625.05 | AT44: 811119.61 | AU44: -45259 | AV44: 221443.84 | AW44: 679209.65 | AX44: -50075
A45: 204 | B45: 12 | C45: 00 | D45: 000 | E45: 002 | F45: 000 | G45: 018-006 | H45: Regulación De Transporte Extraurbano De Pasajeros Y Carga Por Carretera | K45: Documento | L45: 4595 | M45: -6000 | N45: 10595 | O45: =SUM(T45:AE45) -> 1758 | P45: 2686541 | Q45: 3326908 | R45: 1036249.4 | S45: 6000 | T45: 105 | U45: 0 | V45: 125 | W45: 0 | X45: 332 | Y45: 0 | Z45: 263 | AA45: 0 | AB45: 195 | AC45: 0 | AD45: 738 | AE45: 0 | AF45: 692765 | AG45: 104031.9 | AH45: 44376.56 | AI45: 0 | AJ45: 69420 | AK45: 30251.04 | AL45: 0 | AM45: 290269.32 | AN45: 30251.04 | AO45: -148002 | AP45: 132474.4 | AQ45: 30251.04 | AR45: 0 | AS45: 138143 | AT45: 30251.04 | AU45: 45259 | AV45: 106279.02 | AW45: 30251.04 | AX45: 50075
A46: 204 | B46: 12 | C46: 00 | D46: 000 | E46: 002 | F46: 000 | I46: 018-006-0001 | J46: Personas Jurídicas O Individuales Con Licencias Otorgadas De Transporte Extraurbano De Pasajeros Por Carretera | K46: Documento | L46: 525 | M46: 0 | N46: 525 | O46: =SUM(T46:AE46) -> 240 | P46: 1031212 | Q46: 772120 | R46: 287214.64 | S46: 0 | T46: 40 | U46: 0 | V46: 5 | W46: 0 | X46: 40 | Y46: 0 | Z46: 40 | AA46: 0 | AB46: 75 | AC46: 0 | AD46: 40 | AE46: 0 | AF46: -186435 | AG46: 99931.5 | AI46: 0 | AJ46: -25000 | AL46: 0 | AM46: 183168.12 | AO46: -123002 | AP46: 9104 | AR46: 0 | AS46: 9189 | AU46: 0 | AV46: 10822.02 | AX46: 50075
A47: 204 | B47: 12 | C47: 00 | D47: 000 | E47: 002 | F47: 000 | I47: 018-006-0002 | J47: Personas Jurídicas O Individuales Con Permisos Temporales Otorgados Para El Transporte Extraurbano De Pasajeros Por Carretera | K47: Documento | L47: 1575 | M47: -200 | N47: 1775 | O47: =SUM(T47:AE47) -> 150 | P47: 183000 | Q47: 183000 | R47: 0 | S47: 200 | T47: 0 | U47: 0 | V47: 0 | W47: 0 | X47: 0 | Y47: 0 | Z47: 0 | AA47: 0 | AB47: 0 | AC47: 0 | AD47: 150 | AE47: 0 | AF47: 0 | AG47: 0 | AI47: 0 | AJ47: 0 | AL47: 0 | AM47: 0 | AO47: 0 | AP47: 0 | AR47: 0 | AS47: 0 | AU47: 0 | AV47: 0 | AX47: 0
A48: 204 | B48: 12 | C48: 00 | D48: 000 | E48: 002 | F48: 000 | I48: 018-006-0003 | J48: Personas Jurídicas O Individuales Con Licencias Modificadas De Transporte Extraurbano De Pasajeros Por Carretera | K48: Documento | L48: 1550 | M48: -500 | N48: 2050 | O48: =SUM(T48:AE48) -> 680 | P48: 728318 | Q48: 1652777 | R48: 667731.76 | S48: 500 | T48: 0 | U48: 0 | V48: 120 | W48: 0 | X48: 112 | Y48: 0 | Z48: 128 | AA48: 0 | AB48: 120 | AC48: 0 | AD48: 200 | AE48: 0 | AF48: 879200 | AG48: 0 | AH48: 44376.56 | AI48: 0 | AJ48: 94420 | AK48: 30251.04 | AL48: 0 | AM48: 87920 | AN48: 30251.04 | AO48: 0 | AP48: 100920 | AQ48: 30251.04 | AR48: 0 | AS48: 94420 | AT48: 30251.04 | AU48: 45259 | AV48: 94420 | AW48: 30251.04 | AX48: 0
A49: 204 | B49: 12 | C49: 00 | D49: 000 | E49: 002 | F49: 000 | I49: 018-006-0004 | J49: Operativos De Control Fijo Del Servicio De Transporte Extraurbano | K49: Evento | L49: 1470 | M49: -400 | N49: 1870 | O49: =SUM(T49:AE49) -> 447 | P49: 369011 | Q49: 369011 | R49: 58762 | S49: 400 | T49: 0 | U49: 0 | V49: 0 | W49: 0 | X49: 38 | Y49: 0 | Z49: 82 | AA49: 0 | AB49: 170 | AC49: 0 | AD49: 157 | AE49: 0 | AF49: 0 | AG49: 0 | AI49: 0 | AJ49: 0 | AL49: 0 | AM49: 7596 | AO49: 0 | AP49: 16750 | AR49: 0 | AS49: 33379 | AU49: 0 | AV49: 1037 | AX49: 0
A50: 204 | B50: 12 | C50: 00 | D50: 000 | E50: 002 | F50: 000 | I50: 018-006-0005 | J50: Personas Jurídicas O Individuales Con Permisos Expresos Para El Transporte Extraurbano De Pasajeros Por Carretera | K50: Documento | L50: 420 | M50: -5100 | N50: 5520 | O50: =SUM(T50:AE50) -> 688 | P50: 350000 | Q50: 350000 | R50: 22541 | S50: 5100 | T50: 65 | U50: 0 | V50: 0 | W50: 0 | X50: 180 | Y50: 0 | Z50: 95 | AA50: 0 | AB50: 0 | AC50: 0 | AD50: 348 | AE50: 0 | AF50: 0 | AG50: 4100.4 | AI50: 0 | AJ50: 0 | AL50: 0 | AM50: 11585.2 | AO50: 0 | AP50: 5700.4 | AR50: 0 | AS50: 1155 | AU50: 0 | AV50: 0 | AX50: 0
A51: 204 | B51: 12 | C51: 00 | D51: 000 | E51: 002 | F51: 000 | I51: 018-006-0007 | J51: Personas Jurídicas O Individuales Con Constancias De Registro De Pilotos Para El Transporte Extraurbano De Pasajeros Por Carretera | K51: Documento | L51: 525 | M51: -200 | N51: 725 | O51: =SUM(T51:AE51) -> 0 | P51: 25000 | Q51: 0 | R51: 0 | S51: 200 | T51: 0 | U51: 0 | V51: 0 | W51: 0 | X51: 0 | Y51: 0 | Z51: 0 | AA51: 0 | AB51: 0 | AC51: 0 | AD51: 0 | AE51: 0 | AF51: 0 | AG51: 0 | AI51: 0 | AJ51: 0 | AL51: 0 | AM51: 0 | AO51: -25000 | AP51: 0 | AR51: 0 | AS51: 0 | AU51: 0 | AV51: 0 | AX51: 0
A52: 205 | B52: 99 | C52: 00 | D52: 000 | E52: 002 | F52: 000 | G52: 000-005 | H52: Personas Jurídicas Beneficiadas Con Aportes Y/O Cuotas Para Comunicaciones | K52: Aporte | L52: 1 | M52: -1 | N52: 2 | O52: =SUM(T52:AE52) -> 0 | P52: 450000 | Q52: 450000 | R52: 170287.21 | S52: 1 | T52: 0 | U52: 0 | V52: 0 | W52: 0 | X52: 0 | Y52: 0 | Z52: 0 | AA52: 0 | AB52: 0 | AC52: 0 | AD52: 0 | AE52: 0 | AF52: 0 | AG52: 0 | AH52: 0 | AI52: 0 | AJ52: 0 | AL52: 0 | AM52: 0 | AO52: 0 | AP52: 403449.93 | AR52: 0 | AS52: -403449.93 | AU52: 0 | AV52: 170287.21 | AX52: 0
A53: 205 | B53: 99 | C53: 00 | D53: 000 | E53: 002 | F53: 000 | I53: 000-005-0001 | J53: Personas Jurídicas Beneficiadas Con Aportes Y/O Cuotas Para Comunicaciones | K53: Aporte | L53: 1 | M53: -1 | N53: 2 | O53: =SUM(T53:AE53) -> 0 | P53: 450000 | Q53: 450000 | R53: 170287.21 | S53: 1 | T53: 0 | U53: 0 | V53: 0 | W53: 0 | X53: 0 | Y53: 0 | Z53: 0 | AA53: 0 | AB53: 0 | AC53: 0 | AD53: 0 | AE53: 0 | AF53: 0 | AG53: 0 | AI53: 0 | AJ53: 0 | AL53: 0 | AM53: 0 | AO53: 0 | AP53: 403449.93 | AR53: 0 | AS53: -403449.93 | AU53: 0 | AV53: 170287.21 | AX53: 0
A54: 205 | B54: 13 | C54: 00 | D54: 000 | E54: 001 | F54: 000 | G54: 000-013 | H54: Dirección Y Coordinación | K54: Evento | L54: 990 | M54: -786 | N54: 1776 | O54: =SUM(T54:AE54) -> 1447 | P54: =+P55 -> 144895709 | Q54: 56 | R54: 71076796.28 | S54: 786 | T54: 0 | U54: 0 | V54: 741 | W54: 0 | X54: 47 | Y54: 0 | Z54: 50 | AA54: 0 | AB54: 559 | AC54: 0 | AD54: 50 | AE54: 0 | AF54: 0 | AG54: 1571707.34 | AH54: 5896561.8 | AI54: 0 | AJ54: 1736690.77 | AK54: 5449773.88 | AL54: 0 | AM54: 2054724.09 | AN54: 5595839.14 | AO54: 0 | AP54: 26341909.74 | AQ54: 4903948.84 | AR54: -881155 | AS54: 3072523.22 | AT54: 4765679.06 | AU54: -3116 | AV54: 4776244.44 | AW54: 4911193.96 | AX54: -161500
A55: 205 | B55: 13 | C55: 00 | D55: 000 | E55: 001 | F55: 000 | I55: 000-013-0001 | J55: Dirección Y Coordinación | K55: Evento | L55: 990 | M55: -1034 | N55: 2024 | O55: =SUM(T55:AE55) -> 1447 | P55: 144895709 | Q55: 143849938 | R55: 71076796.28 | S55: 786 | T55: 0 | U55: 0 | V55: 741 | W55: 0 | X55: 47 | Y55: 0 | Z55: 50 | AA55: 0 | AB55: 559 | AC55: 0 | AD55: 50 | AE55: 0 | AF55: 0 | AG55: 1571707.34 | AH55: 5896561.8 | AI55: 0 | AJ55: 1736690.77 | AK55: 5449773.88 | AL55: 0 | AM55: 2054724.09 | AN55: 5595839.14 | AO55: 0 | AP55: 26341909.74 | AQ55: 4903948.84 | AR55: -881155 | AS55: 3072523.22 | AT55: 4765679.06 | AU55: -3116 | AV55: 4776244.44 | AW55: 4911193.96 | AX55: -161500
A56: 205 | B56: 13 | C56: 00 | D56: 000 | E56: 002 | F56: 000 | G56: 000-014 | H56: Aeronaves Con Servicios De Aeronavegabilidad | K56: Aeronave | L56: 1676 | M56: -3865 | N56: 5541 | O56: =SUM(T56:AE56) -> 2662 | P56: 74253515 | Q56: 75293331 | R56: 19702053.58 | S56: 0 | T56: =+T61+T62+T63 -> 0 | U56: 0 | V56: =+V61+V62+V63 -> 896 | W56: 0 | X56: =+X61+X62+X63 -> 454 | Y56: 0 | Z56: =+Z61+Z62+Z63 -> 441 | AA56: 0 | AB56: =+AB61+AB62+AB63 -> 457 | AC56: 0 | AD56: =+AD61+AD62+AD63 -> 414 | AE56: 0 | AF56: 0 | AG56: 301318.1 | AH56: 1561731.3 | AI56: 0 | AJ56: -64784.55 | AK56: 1433470 | AL56: 0 | AM56: 1589609.95 | AN56: 1418470 | AO56: 0 | AP56: 3132866.46 | AQ56: 2227282.17 | AR56: 881155 | AS56: 1199838.66 | AT56: 2185370 | AU56: 3116 | AV56: =SUBTOTAL(9,AV57:AV63) -> 2464744.75 | AW56: =SUBTOTAL(9,AW57:AW63) -> 2252136.74 | AX56: 155545
A57: 205 | B57: 13 | C57: 00 | D57: 000 | E57: 002 | F57: 000 | I57: 000-014-0001 | J57: Pasajeros Que Ingresan Por Medio De Transporte Aéreo Con Servicios De Desembarque | K57: Persona | L57: 291179 | M57: -1589874 | N57: 1881053 | O57: =SUM(T57:AE57) -> 894534 | P57: 18478387 | Q57: 18760818 | R57: 6478754.02 | S57: 1589874 | T57: 0 | U57: 0 | V57: 272839 | W57: 0 | X57: 150711 | Y57: 0 | Z57: 163121 | AA57: 0 | AB57: 145737 | AC57: 0 | AD57: 162126 | AE57: 0 | AF57: 0 | AG57: 22657.5 | AH57: 889926.03 | AI57: 0 | AJ57: -20242.5 | AK57: 816838.51 | AL57: 0 | AM57: 0 | AN57: 808291.02 | AO57: 0 | AP57: 0 | AQ57: 1269178.88 | AR57: 200000 | AS57: 0 | AT57: 1245295.94 | AU57: 2431 | AV57: 163466 | AW57: =1283341.83-0.19+1 -> 1283342.64 | AX57: 80000
A58: 205 | B58: 13 | C58: 00 | D58: 000 | E58: 002 | F58: 000 | I58: 000-014-0002 | J58: Pasajeros Que Egresan Por Medio De Transporte Aéreo Con Servicios De Embarque | K58: Persona | L58: 1676801 | M58: -186826 | N58: 1863627 | O58: =SUM(T58:AE58) -> 902283 | P58: 54283348 | Q58: 55040733 | R58: 13120616.06 | S58: 186826 | T58: 0 | U58: 0 | V58: 279002 | W58: 0 | X58: 153513 | Y58: 0 | Z58: 164213 | AA58: 0 | AB58: 149000 | AC58: 0 | AD58: 156555 | AE58: 0 | AF58: 0 | AG58: 278660.6 | AH58: 671805.27 | AI58: 0 | AJ58: -44542.05 | AK58: 616631.49 | AL58: 0 | AM58: 1589609.95 | AN58: 610178.98 | AO58: 0 | AP58: 3131658.96 | AQ58: 958103.29 | AR58: 681155 | AS58: 1199838.66 | AT58: 940074.06 | AU58: 685 | AV58: 2199802.75 | AW58: 968794.1 | AX58: 75545
A59: 205 | B59: 13 | C59: 00 | D59: 000 | E59: 002 | F59: 000 | I59: 000-014-0003 | J59: Carga Embarcada Para La Exportación Aérea | K59: Kilogramo | L59: 86739745 | M59: 57447667 | N59: 29292078 | O59: =SUM(T59:AE59) -> 12364643 | P59: 591375 | Q59: 591375 | R59: 102683.5 | S59: -57447667 | T59: 0 | U59: 0 | V59: 4174492 | W59: 0 | X59: 1927292 | Y59: 0 | Z59: 2000521 | AA59: 0 | AB59: 2155498 | AC59: 0 | AD59: 2106840 | AE59: 0 | AF59: 0 | AG59: 0 | AI59: 0 | AJ59: 0 | AL59: 0 | AM59: 0 | AO59: 0 | AP59: 1207.5 | AR59: 0 | AS59: 0 | AU59: 0 | AV59: 101476 | AX59: 0
A60: 205 | B60: 13 | C60: 00 | D60: 000 | E60: 002 | F60: 000 | I60: 000-014-0004 | J60: Carga Desembarcada Para La Importación Aérea | K60: Kilogramo | L60: 33930296 | M60: 9383660 | N60: 24546636 | O60: =SUM(T60:AE60) -> 11882773 | P60: 264205 | Q60: 264205 | R60: 0 | S60: -9383660 | T60: 0 | U60: 0 | V60: 3806607 | W60: 0 | X60: 2167626 | Y60: 0 | Z60: 1900453 | AA60: 0 | AB60: 2031356 | AC60: 0 | AD60: 1976731 | AE60: 0 | AF60: 0 | AG60: 0 | AI60: 0 | AJ60: 0 | AL60: 0 | AM60: 0 | AO60: 0 | AP60: 0 | AR60: 0 | AS60: 0 | AU60: 0 | AV60: 0 | AX60: 0
A61: 205 | B61: 13 | C61: 00 | D61: 000 | E61: 002 | F61: 000 | I61: 000-014-0005 | J61: Aeronaves Con Inspección Técnica | K61: Aeronave | L61: 297 | M61: -234 | N61: 531 | O61: =SUM(T61:AE61) -> 223 | P61: 206100 | Q61: 206100 | R61: 0 | S61: 234 | T61: 0 | U61: 0 | V61: 72 | W61: 0 | X61: 42 | Y61: 0 | Z61: 35 | AA61: 0 | AB61: 43 | AC61: 0 | AD61: 31 | AE61: 0 | AF61: 0 | AG61: 0 | AI61: 0 | AJ61: 0 | AL61: 0 | AM61: 0 | AO61: 0 | AP61: 0 | AR61: 0 | AS61: 0 | AU61: 0 | AV61: 0 | AX61: 0
A62: 205 | B62: 13 | C62: 00 | D62: 000 | E62: 002 | F62: 000 | I62: 000-014-0006 | J62: Aeronaves Nacionales Y Extranjeras Con Certificado De Matrícula Autorizada Y Renovada | K62: Aeronave | L62: 135 | M62: -75 | N62: 210 | O62: =SUM(T62:AE62) -> 73 | P62: 250275 | Q62: 250275 | R62: 0 | S62: 75 | T62: 0 | U62: 0 | V62: 24 | W62: 0 | X62: 12 | Y62: 0 | Z62: 6 | AA62: 0 | AB62: 14 | AC62: 0 | AD62: 17 | AE62: 0 | AF62: 0 | AG62: 0 | AI62: 0 | AJ62: 0 | AL62: 0 | AM62: 0 | AO62: 0 | AP62: 0 | AR62: 0 | AS62: 0 | AU62: 0 | AV62: 0 | AX62: 0
A63: 205 | B63: 13 | C63: 00 | D63: 000 | E63: 002 | F63: 000 | I63: 000-014-0007 | J63: Aeronaves Con Servicios De Pernocte En Rampa Internacional Del Aeropuerto | K63: Aeronave | L63: 1244 | M63: -3556 | N63: 4800 | O63: =SUM(T63:AE63) -> 2366 | P63: 179825 | Q63: 179825 | R63: 0 | S63: 3556 | T63: 0 | U63: 0 | V63: 800 | W63: 0 | X63: 400 | Y63: 0 | Z63: 400 | AA63: 0 | AB63: 400 | AC63: 0 | AD63: 366 | AE63: 0 | AF63: 0 | AG63: 0 | AI63: 0 | AJ63: 0 | AL63: 0 | AM63: 0 | AO63: 0 | AP63: 0 | AR63: 0 | AS63: 0 | AU63: 0 | AV63: 0 | AX63: 0
A64: 205 | B64: 13 | C64: 00 | D64: 000 | E64: 003 | F64: 000 | G64: 000-016 | H64: Aeronaves Con Servicios Operativos De Aviación Y Soporte Técnico | K64: Aeronave | L64: 0 | M64: -15562 | N64: 15562 | O64: =SUM(T64:AE64) -> 47844 | P64: =+P65 -> 13660761 | Q64: 66 | R64: 5728521.73 | S64: 15562 | T64: 0 | U64: 0 | V64: 15924 | W64: 0 | X64: 8165 | Y64: 0 | Z64: 8164 | AA64: 0 | AB64: 7875 | AC64: 0 | AD64: 7716 | AE64: 0 | AF64: 0 | AG64: 0 | AH64: 954371 | AI64: 0 | AJ64: 0 | AK64: 920637.93 | AL64: 0 | AM64: 0 | AN64: 941465.52 | AO64: 0 | AP64: 0 | AQ64: 907500 | AR64: 0 | AS64: 0 | AT64: 910500 | AU64: 0 | AV64: 0 | AW64: 1094047.28 | AX64: 0
A65: 205 | B65: 13 | C65: 00 | D65: 000 | E65: 003 | F65: 000 | I65: 000-016-0001 | J65: Aeronaves Con Servicios Operativos De Aviación Y Soporte Técnico | K65: Aeronave | L65: 84696 | M65: -15562 | N65: 100258 | O65: =SUM(T65:AE65) -> 47844 | P65: 13660761 | Q65: 13660761 | R65: 5728521.73 | S65: 15562 | T65: 0 | U65: 0 | V65: 15924 | W65: 0 | X65: 8165 | Y65: 0 | Z65: 8164 | AA65: 0 | AB65: 7875 | AC65: 0 | AD65: 7716 | AE65: 0 | AF65: 0 | AG65: 0 | AH65: 954371 | AI65: 0 | AJ65: 0 | AK65: 920637.93 | AL65: 0 | AM65: 0 | AN65: 941465.52 | AO65: 0 | AP65: 0 | AQ65: 907500 | AR65: 0 | AS65: 0 | AT65: 910500 | AU65: 0 | AV65: 0 | AW65: 1094047.28 | AX65: 0
A66: 205 | B66: 13 | C66: 00 | D66: 000 | E66: 004 | F66: 000 | G66: 000-017 | H66: Infraestructura De La Red Aeroportuaria Nacional Con Servicios De Mantenimiento | K66: Metro cuadrado | L66: 0 | M66: 613759 | N66: -613759 | O66: =SUM(T66:AE66) -> 59372 | P66: =+P67 -> 16133540 | Q66: =+Q67 -> 16139495 | R66: 1130569.37 | S66: -613759 | T66: 0 | U66: 0 | V66: 19138 | W66: 0 | X66: 10030 | Y66: 0 | Z66: 9859 | AA66: 0 | AB66: 9790 | AC66: 0 | AD66: 10555 | AE66: 0 | AF66: 0 | AG66: 76391.45 | AH66: 0 | AI66: 0 | AJ66: 27592.33 | AK66: 0 | AL66: 0 | AM66: 55294.94 | AN66: 0 | AO66: 0 | AP66: 57743.13 | AQ66: 0 | AR66: 0 | AS66: 46394.12 | AT66: 0 | AU66: 0 | AV66: 867153.4 | AX66: 5955
A67: 205 | B67: 13 | C67: 00 | D67: 000 | E67: 004 | F67: 000 | I67: 000-017-0001 | J67: Infraestructura De La Red Aeroportuaria Nacional Con Servicios De Mantenimiento | K67: Metro cuadrado | L67: 728874 | M67: 613759 | N67: 115115 | O67: =SUM(T67:AE67) -> 59372 | P67: 16133540 | Q67: 16139495 | R67: 1130569.37 | S67: -613759 | T67: 0 | U67: 0 | V67: 19138 | W67: 0 | X67: 10030 | Y67: 0 | Z67: 9859 | AA67: 0 | AB67: 9790 | AC67: 0 | AD67: 10555 | AE67: 0 | AF67: 0 | AG67: 76391.45 | AI67: 0 | AJ67: 27592.33 | AL67: 0 | AM67: 55294.94 | AO67: 0 | AP67: 57743.13 | AR67: 0 | AS67: 46394.12 | AU67: 0 | AV67: 867153.4 | AX67: 5955
A68: 206 | B68: 14 | C68: 00 | D68: 000 | E68: 001 | F68: 000 | G68: 000-018 | H68: Dirección Y Coordinación | K68: Evento | L68: 233 | M68: 33 | N68: 200 | O68: =SUM(T68:AE68) -> 120 | P68: 214756462 | Q68: 103848301 | R68: 25594942.06 | S68: -45 | T68: 0 | U68: 0 | V68: 0 | W68: 0 | X68: 0 | Y68: 0 | Z68: 0 | AA68: 0 | AB68: 107 | AC68: 0 | AD68: 1 | AE68: 12 | AF68: -110908161 | AG68: 17223313.28 | AH68: 1346016.95 | AI68: 0 | AJ68: 12281.97 | AK68: 1047433.02 | AL68: 0 | AM68: 275226.58 | AN68: 1072920.26 | AO68: 0 | AP68: 380324.19 | AQ68: 1149604.34 | AR68: 0 | AS68: 176913.58 | AT68: 1202751.2 | AU68: 0 | AV68: 505806.71 | AW68: 1202349.98 | AX68: 0
A69: 206 | B69: 14 | C69: 00 | D69: 000 | E69: 001 | F69: 000 | I69: 000-018-0001 | J69: Dirección Y Coordinación | K69: Evento | L69: 117 | M69: 0 | N69: 117 | O69: =SUM(T69:AE69) -> 108 | P69: 28177916 | Q69: 28177916 | R69: 8503197.47 | S69: 0 | T69: 0 | U69: 0 | V69: 0 | W69: 0 | X69: 0 | Y69: 0 | Z69: 0 | AA69: 0 | AB69: 107 | AC69: 0 | AD69: 1 | AE69: 0 | AF69: 0 | AG69: 131568.69 | AH69: 1346016.95 | AI69: 0 | AJ69: 12281.97 | AK69: 1047433.02 | AL69: 0 | AM69: 275226.58 | AN69: 1072920.26 | AO69: 0 | AP69: 380324.19 | AQ69: 1149604.34 | AR69: 0 | AS69: 176913.58 | AT69: 1202751.2 | AU69: 0 | AV69: 505806.71 | AW69: 1202349.98 | AX69: 0
A70: 206 | B70: 14 | C70: 00 | D70: 000 | E70: 001 | F70: 000 | I70: 000-018-0002 | J70: Población Estudiantil Beneficiada Con Equipo Educacional | K70: Persona | L70: 10354 | M70: -11491 | N70: 21845 | O70: =SUM(T70:AE70) -> 21845 | P70: 5100000 | Q70: 16620390 | R70: 0 | S70: 11491 | T70: 0 | U70: 0 | V70: 0 | W70: 0 | X70: 0 | Y70: 0 | Z70: 0 | AA70: 0 | AB70: 21845 | AC70: 0 | AD70: 0 | AE70: 0 | AF70: 11520390 | AG70: 0 | AI70: 0 | AJ70: 0 | AL70: 0 | AM70: 0 | AO70: 0 | AP70: 0 | AR70: 0 | AS70: 0 | AU70: 0 | AV70: 0 | AX70: 0
A71: 206 | B71: 14 | C71: 00 | D71: 000 | E71: 001 | F71: 000 | I71: 000-018-0003 | J71: Remozamiento De Edificios Públicos | K71: Evento | L71: 116 | M71: 33 | N71: 83 | O71: =SUM(T71:AE71) -> 12 | P71: 181478546 | Q71: 59049995 | R71: 17091744.59 | S71: -45 | T71: 0 | U71: 0 | V71: 0 | W71: 0 | X71: 0 | Y71: 0 | Z71: 0 | AA71: 0 | AB71: 0 | AC71: 0 | AD71: 0 | AE71: 12 | AF71: -122428551 | AG71: 17091744.59 | AI71: 0 | AJ71: 0 | AL71: 0 | AM71: 0 | AO71: 0 | AP71: 0 | AR71: 0 | AS71: 0 | AU71: 0 | AV71: 0 | AX71: 0
A72: 206 | B72: 94 | C72: 11 | D72: 000 | E72: 001 | F72: 000 | G72: 000-048 | H72: Intervenciones Realizadas Para La Atención De Daños Provocados Por Depresión Tropical Eta | K72: Documento | L72: 0 | M72: -27 | N72: 27 | O72: =SUM(T72:AE72) -> 0 | P72: 0 | Q72: 12300957 | R72: 1451876.2 | S72: 27 | T72: 0 | U72: 0 | V72: 0 | W72: 0 | X72: 0 | Y72: 0 | Z72: 0 | AA72: 0 | AB72: 0 | AC72: 0 | AD72: 0 | AE72: 0 | AF72: 12300957 | AG72: 1451876.2 | AH72: 0 | AI72: 0 | AJ72: 0 | AL72: 0 | AM72: 0 | AO72: 0 | AP72: 0 | AR72: 0 | AS72: 0 | AU72: 0 | AV72: 0 | AX72: 0
A73: 206 | B73: 94 | C73: 11 | D73: 000 | E73: 001 | F73: 000 | I73: 000-048-0002 | J73: Remozamiento De Edificios Públicos Para La Atención De Daños Provocados Por Depresiones Tropicales | K73: Evento | L73: 0 | M73: -27 | N73: 27 | O73: =SUM(T73:AE73) -> 0 | P73: 0 | Q73: 12300957 | R73: 1451876.2 | S73: 27 | T73: 0 | U73: 0 | V73: 0 | W73: 0 | X73: 0 | Y73: 0 | Z73: 0 | AA73: 0 | AB73: 0 | AC73: 0 | AD73: 0 | AE73: 0 | AF73: 12300957 | AG73: 1451876.2 | AI73: 0 | AJ73: 0 | AL73: 0 | AM73: 0 | AO73: 0 | AP73: 0 | AR73: 0 | AS73: 0 | AU73: 0 | AV73: 0 | AX73: 0
A74: 206 | B74: 94 | C74: 14 | D74: 000 | E74: 001 | F74: 000 | G74: 000-049 | H74: Intervenciones Realizadas Para La Atención De La Emergencia Por Época Lluviosa, Temporada Ciclónica Y Sistema De Baja Presión | K74: Documento | L74: 0 | M74: -2 | N74: 2 | O74: =SUM(T74:AE74) -> 0 | P74: 0 | Q74: 330983 | R74: =+AG74+AH74+AJ74+AK74+AM74+AN74+AP74+AQ74+AS74+AT74+AV74+AW74 -> 0 | S74: 2 | T74: 0 | U74: 0 | V74: 0 | W74: 0 | X74: 0 | Y74: 0 | Z74: 0 | AA74: 0 | AB74: 0 | AC74: 0 | AD74: 0 | AE74: 0 | AF74: 330983 | AG74: 0 | AH74: 0 | AI74: 0 | AJ74: 0 | AL74: 0 | AM74: 0 | AO74: 0 | AP74: 0 | AR74: 0 | AS74: 0 | AU74: 0 | AV74: 0 | AX74: 0
A75: 206 | B75: 94 | C75: 14 | D75: 000 | E75: 001 | F75: 000 | I75: 000-049-0001 | J75: Intervenciones Realizadas Para La Atención De La Emergencia Por Época Lluviosa, Temporada Ciclónica Y Sistema De Baja Presión | K75: Documento | L75: 0 | M75: -2 | N75: 2 | O75: =SUM(T75:AE75) -> 0 | P75: 0 | Q75: 330983 | R75: 0 | S75: 2 | T75: 0 | U75: 0 | V75: 0 | W75: 0 | X75: 0 | Y75: 0 | Z75: 0 | AA75: 0 | AB75: 0 | AC75: 0 | AD75: 0 | AE75: 0 | AF75: 330983 | AG75: 0 | AI75: 0 | AJ75: 0 | AL75: 0 | AM75: 0 | AO75: 0 | AP75: 0 | AR75: 0 | AS75: 0 | AU75: 0 | AV75: 0 | AX75: 0
A76: 206 | B76: 94 | C76: 15 | D76: 000 | E76: 001 | F76: 000 | G76: 000-050 | H76: Intervenciones Realizadas Para La Atención De La Emergencia Provocada Por Los Efectos De La Época Lluviosa Y El Ciclón Tropical Julia | K76: Documento | L76: 0 | M76: -16 | N76: 16 | O76: =SUM(T76:AE76) -> 0 | P76: 0 | Q76: 3276221 | R76: 0 | S76: 16 | T76: 0 | U76: 0 | V76: 0 | W76: 0 | X76: 0 | Y76: 0 | Z76: 0 | AA76: 0 | AB76: 0 | AC76: 0 | AD76: 0 | AE76: 0 | AF76: 3276221 | AG76: 0 | AH76: 0 | AI76: 0 | AJ76: 0 | AL76: 0 | AM76: 0 | AO76: 0 | AP76: 0 | AR76: 0 | AS76: 0 | AU76: 0 | AV76: 0 | AX76: 0
A77: 206 | B77: 94 | C77: 15 | D77: 000 | E77: 001 | F77: 000 | I77: 000-050-0001 | J77: Intervenciones Realizadas Para La Atención De La Emergencia Provocada Por Los Efectos De La Época Lluviosa Y El Ciclón Tropical Julia | K77: Documento | L77: 0 | M77: -16 | N77: 16 | O77: =SUM(T77:AE77) -> 0 | P77: 0 | Q77: 3276221 | R77: 0 | S77: 16 | T77: 0 | U77: 0 | V77: 0 | W77: 0 | X77: 0 | Y77: 0 | Z77: 0 | AA77: 0 | AB77: 0 | AC77: 0 | AD77: 0 | AE77: 0 | AF77: 3276221 | AG77: 0 | AI77: 0 | AJ77: 0 | AL77: 0 | AM77: 0 | AO77: 0 | AP77: 0 | AR77: 0 | AS77: 0 | AU77: 0 | AV77: 0 | AX77: 0
A78: 206 | B78: 94 | C78: 16 | D78: 000 | E78: 001 | F78: 000 | G78: 000-053 | H78: Intervenciones Realizadas Para La Atención De Daños Y Efectos Causados Por El Alto Índice De Lluvias Y Saturación Actual De Los Suelos En El Territorio Nacional (Dg 2-2024) | K78: Documento | L78: 0 | M78: -35 | N78: 35 | O78: =SUM(T78:AE78) -> 35 | P78: 0 | Q78: 20000000 | R78: 0 | S78: 0 | T78: 0 | U78: 0 | V78: 0 | W78: 0 | X78: 0 | Y78: 0 | Z78: 0 | AA78: 0 | AB78: 0 | AC78: 0 | AD78: 0 | AE78: 35 | AF78: 0 | AG78: 0 | AH78: 0 | AI78: 0 | AJ78: 0 | AL78: 0 | AM78: 0 | AO78: 0 | AP78: 0 | AR78: 0 | AS78: 0 | AT78: 0 | AU78: 0 | AV78: 0 | AW78: 0 | AX78: 20000000
A79: 206 | B79: 94 | C79: 16 | D79: 000 | E79: 001 | F79: 000 | I79: 000-053-0001 | J79: Intervenciones Realizadas Para La Atención De La Emergencia Provocada Por Los Efectos De La Época Lluviosa Y El Ciclón Tropical Julia | K79: Documento | L79: 0 | M79: -35 | N79: 35 | O79: =SUM(T79:AE79) -> 35 | P79: 0 | Q79: 20000000 | R79: 0 | S79: 0 | T79: 0 | U79: 0 | V79: 0 | W79: 0 | X79: 0 | Y79: 0 | Z79: 0 | AA79: 0 | AB79: 0 | AC79: 0 | AD79: 0 | AE79: 35 | AF79: 0 | AG79: 0 | AI79: 0 | AJ79: 0 | AL79: 0 | AM79: 0 | AO79: 0 | AP79: 0 | AR79: 0 | AS79: 0 | AU79: 0 | AV79: 0 | AX79: 20000000
A80: 207 | B80: 15 | C80: 00 | D80: 000 | E80: 001 | F80: 000 | G80: 000-019 | H80: Dirección Y Coordinación | K80: Evento | L80: 233 | M80: 110 | N80: 123 | O80: =SUM(T80:AE80) -> -20 | P80: 8687812 | Q80: 8455667 | R80: 3625070.57 | S80: 0 | T80: 75 | U80: 0 | V80: 1 | W80: 0 | X80: 5 | Y80: 0 | Z80: 0 | AA80: 0 | AB80: 9 | AC80: 0 | AD80: 0 | AE80: -110 | AF80: 0 | AG80: 38837.05 | AH80: 450734.42 | AI80: 0 | AJ80: 363531.05 | AK80: 408731.97 | AL80: -330173 | AM80: 168186.39 | AN80: 410274.79 | AO80: 0 | AP80: 174037.67 | AQ80: 490261 | AR80: 0 | AS80: 52886.39 | AT80: 445561 | AU80: 0 | AV80: 156734.5 | AW80: 465294.34 | AX80: 98028
A81: 207 | B81: 15 | C81: 00 | D81: 000 | E81: 001 | F81: 000 | I81: 000-019-0001 | J81: Dirección Y Coordinación | K81: Evento | L81: 233 | M81: 110 | N81: 123 | O81: =SUM(T81:AE81) -> -20 | P81: 8687812 | Q81: 8455667 | R81: 3625070.57 | S81: 0 | T81: 75 | U81: 0 | V81: 1 | W81: 0 | X81: 5 | Y81: 0 | Z81: 0 | AA81: 0 | AB81: 9 | AC81: 0 | AD81: 0 | AE81: -110 | AF81: 0 | AG81: 38837.05 | AH81: 450734.42 | AI81: 0 | AJ81: 363531.05 | AK81: 408731.97 | AL81: -330173 | AM81: 168186.39 | AN81: 410274.79 | AO81: 0 | AP81: 174037.67 | AQ81: 490261 | AR81: 0 | AS81: 52886.39 | AT81: 445561 | AU81: 0 | AV81: 156734.5 | AW81: 465294.34 | AX81: 98028
A82: 207 | B82: 15 | C82: 00 | D82: 000 | E82: 002 | F82: 000 | G82: 000-020 | H82: Personas Individuales Y Jurídicas Registradas En Radiodifusión Y Televisión | K82: Persona | L82: 997 | M82: 0 | N82: 997 | O82: =SUM(T82:AE82) -> 519 | P82: 2150172 | Q82: 2448381 | R82: 1217026.44 | S82: 0 | T82: 100 | U82: 0 | V82: 100 | W82: 0 | X82: 85 | Y82: 0 | Z82: 65 | AA82: 0 | AB82: 66 | AC82: 0 | AD82: 103 | AE82: 0 | AF82: 0 | AG82: 11850 | AH82: 156796.89 | AI82: 0 | AJ82: 0 | AK82: 179211.75 | AL82: 298209 | AM82: 9648 | AN82: 170056.52 | AO82: 0 | AP82: 20156.57 | AQ82: 169842.41 | AR82: 0 | AS82: 0 | AT82: 173478.22 | AU82: 0 | AV82: 627.5 | AW82: 325358.58 | AX82: 0
A83: 207 | B83: 15 | C83: 00 | D83: 000 | E83: 002 | F83: 000 | I83: 000-020-0003 | J83: Comerciales Registrados De Personas Jurídicas O Individuales | K83: Persona | L83: 790 | M83: 0 | N83: 790 | O83: =SUM(T83:AE83) -> 408 | P83: 2055172 | Q83: 2375381 | R83: 1174744.37 | S83: 0 | T83: 80 | U83: 0 | V83: 80 | W83: 0 | X83: 65 | Y83: 0 | Z83: 45 | AA83: 0 | AB83: 55 | AC83: 0 | AD83: 83 | AE83: 0 | AF83: 0 | AG83: 0 | AH83: 156796.89 | AI83: 0 | AJ83: 0 | AK83: 179211.75 | AL83: 320209 | AM83: 0 | AN83: 170056.52 | AO83: 0 | AP83: 0 | AQ83: 169842.41 | AR83: 0 | AS83: 0 | AT83: 173478.22 | AU83: 0 | AV83: 0 | AW83: 325358.58 | AX83: 0
A84: 207 | B84: 15 | C84: 00 | D84: 000 | E84: 002 | F84: 000 | I84: 000-020-0004 | J84: Técnicos Con Registro En Radio Y/O Televisión | K84: Persona | L84: 3 | M84: 0 | N84: 3 | O84: =SUM(T84:AE84) -> 1 | P84: 45000 | Q84: 33000 | R84: 19998 | S84: 0 | T84: 0 | U84: 0 | V84: 0 | W84: 0 | X84: 0 | Y84: 0 | Z84: 0 | AA84: 0 | AB84: 1 | AC84: 0 | AD84: 0 | AE84: 0 | AF84: 0 | AG84: 11850 | AI84: 0 | AJ84: 0 | AL84: -12000 | AM84: 8148 | AO84: 0 | AP84: 0 | AR84: 0 | AS84: 0 | AU84: 0 | AV84: 0 | AX84: 0
A85: 207 | B85: 15 | C85: 00 | D85: 000 | E85: 002 | F85: 000 | I85: 000-020-0005 | J85: Locutores Registrados En Radio Y/O Televisión | K85: Persona | L85: 204 | M85: 0 | N85: 204 | O85: =SUM(T85:AE85) -> 110 | P85: 50000 | Q85: 40000 | R85: 22284.07 | S85: 0 | T85: 20 | U85: 0 | V85: 20 | W85: 0 | X85: 20 | Y85: 0 | Z85: 20 | AA85: 0 | AB85: 10 | AC85: 0 | AD85: 20 | AE85: 0 | AF85: 0 | AG85: 0 | AI85: 0 | AJ85: 0 | AL85: -10000 | AM85: 1500 | AO85: 0 | AP85: 20156.57 | AR85: 0 | AS85: 0 | AU85: 0 | AV85: 627.5 | AX85: 0
A86: 207 | B86: 15 | C86: 00 | D86: 000 | E86: 003 | F86: 000 | G86: 000-021 | H86: Servicios De Radiodifusión | K86: Evento | L86: 54998 | M86: 0 | N86: 54998 | O86: =SUM(T86:AE86) -> 27834 | P86: 4708006 | Q86: 4641942 | R86: 2045327.5 | S86: 0 | T86: 4611 | U86: 0 | V86: 4626 | W86: 0 | X86: 4638 | Y86: 0 | Z86: 4638 | AA86: 0 | AB86: 4653 | AC86: 0 | AD86: 4668 | AE86: 0 | AF86: 0 | AG86: 50127.98 | AH86: 196389.29 | AI86: 0 | AJ86: 96551.94 | AK86: 196513.51 | AL86: 31964 | AM86: 44070.15 | AN86: 182299.24 | AO86: 0 | AP86: 299757.54 | AQ86: 186306.82 | AR86: 0 | AS86: 21606.54 | AT86: 185057.72 | AU86: 0 | AV86: 289140.56 | AW86: 297506.21 | AX86: -98028
A87: 207 | B87: 15 | C87: 00 | D87: 000 | E87: 003 | F87: 000 | I87: 000-021-0001 | J87: Programas Radiales A Control Remoto Difundidos | K87: Evento | L87: 2818 | M87: 0 | N87: 2818 | O87: =SUM(T87:AE87) -> 1400 | P87: 129476 | Q87: 113476 | R87: 43254.48 | S87: 0 | T87: 235 | U87: 0 | V87: 225 | W87: 0 | X87: 235 | Y87: 0 | Z87: 235 | AA87: 0 | AB87: 235 | AC87: 0 | AD87: 235 | AE87: 0 | AF87: 0 | AG87: 3432.47 | AI87: 0 | AJ87: 0 | AL87: -16000 | AM87: 0 | AO87: 0 | AP87: 31547.69 | AR87: 0 | AS87: 7466.32 | AU87: 0 | AV87: 808 | AX87: 0
A88: 207 | B88: 15 | C88: 00 | D88: 000 | E88: 003 | F88: 000 | I88: 000-021-0002 | J88: Programas Radiales Difundidos | K88: Evento | L88: 11880 | M88: 0 | N88: 11880 | O88: =SUM(T88:AE88) -> 5884 | P88: 1386359 | Q88: 1306359 | R88: 766472.47 | S88: 0 | T88: 951 | U88: 0 | V88: 976 | W88: 0 | X88: 978 | Y88: 0 | Z88: 978 | AA88: 0 | AB88: 993 | AC88: 0 | AD88: 1008 | AE88: 0 | AF88: 0 | AG88: 46695.51 | AH88: 196389.29 | AI88: 0 | AJ88: 47723.44 | AL88: -80000 | AM88: 30065.15 | AO88: 0 | AP88: 252967.69 | AR88: 0 | AS88: 4134.86 | AU88: 0 | AV88: 188496.53 | AX88: 0
A89: 207 | B89: 15 | C89: 00 | D89: 000 | E89: 003 | F89: 000 | I89: 000-021-0003 | J89: Spot Gubernamentales Otorgados A Entidades Públicas | K89: Evento | L89: 40300 | M89: 0 | N89: 40300 | O89: =SUM(T89:AE89) -> 20550 | P89: 3192171 | Q89: 3222107 | R89: 1235600.55 | S89: 0 | T89: 3425 | U89: 0 | V89: 3425 | W89: 0 | X89: 3425 | Y89: 0 | Z89: 3425 | AA89: 0 | AB89: 3425 | AC89: 0 | AD89: 3425 | AE89: 0 | AF89: 0 | AG89: 0 | AI89: 0 | AJ89: 48828.5 | AK89: 196513.51 | AL89: 127964 | AM89: 14005 | AN89: 182299.24 | AO89: 0 | AP89: 15242.16 | AQ89: 186306.82 | AR89: 0 | AS89: 10005.36 | AT89: 185057.72 | AU89: 0 | AV89: 99836.03 | AW89: 297506.21 | AX89: -98028
A90: 208 | B90: 21 | C90: 00 | D90: 000 | E90: 001 | F90: 000 | G90: 000-024 | H90: Dirección Y Coordinación | K90: Evento | L90: 218 | M90: 0 | N90: 218 | O90: =SUM(T90:AE90) -> 51 | P90: 8433472 | Q90: 8466934 | R90: 2465708.89 | S90: 0 | T90: 45 | U90: 0 | V90: 2 | W90: 0 | X90: 1 | Y90: 0 | Z90: 2 | AA90: 0 | AB90: 0 | AC90: 0 | AD90: 1 | AE90: 0 | AF90: 0 | AG90: 27974.27 | AH90: 413760.79 | AI90: 0 | AJ90: 16236.5 | AK90: 403776.07 | AL90: 0 | AM90: 72572 | AN90: 323386.45 | AO90: 0 | AP90: 33079.54 | AQ90: 345689.52 | AR90: 33462 | AS90: 118825.59 | AT90: 274925 | AU90: 0 | AV90: 210444.71 | AW90: 225038.45 | AX90: 0
A91: 208 | B91: 21 | C91: 00 | D91: 000 | E91: 001 | F91: 000 | I91: 000-024-0001 | J91: Dirección Y Coordinación | K91: Evento | L91: 218 | M91: 0 | N91: 218 | O91: =SUM(T91:AE91) -> 51 | P91: 8433472 | Q91: 8466934 | R91: 2465708.89 | S91: 0 | T91: 45 | U91: 0 | V91: 2 | W91: 0 | X91: 1 | Y91: 0 | Z91: 2 | AA91: 0 | AB91: 0 | AC91: 0 | AD91: 1 | AE91: 0 | AF91: 0 | AG91: 27974.27 | AH91: 413760.79 | AI91: 0 | AJ91: 16236.5 | AK91: 403776.07 | AL91: 0 | AM91: 72572 | AN91: 323386.45 | AO91: 0 | AP91: 33079.54 | AQ91: 345689.52 | AR91: 33462 | AS91: 118825.59 | AT91: 274925 | AU91: 0 | AV91: 210444.71 | AW91: 225038.45 | AX91: 0
A92: 208 | B92: 21 | C92: 00 | D92: 000 | E92: 002 | F92: 000 | G92: 000-025 | H92: Empresas De Cable Con Registro Y Supervisión | K92: Entidad | L92: 2958 | M92: 0 | N92: 2958 | O92: =SUM(T92:AE92) -> 1080 | P92: 1851395 | Q92: 1817933 | R92: 252517.26 | S92: 0 | T92: 162 | U92: 0 | V92: 289 | W92: 0 | X92: 232 | Y92: 0 | Z92: 298 | AA92: 0 | AB92: 0 | AC92: 0 | AD92: 99 | AE92: 0 | AF92: 0 | AG92: 3112.5 | AH92: 0 | AI92: 0 | AJ92: 80110.5 | AK92: 0 | AL92: 0 | AM92: 70234 | AN92: 0 | AO92: 0 | AP92: 93905 | AQ92: 0 | AR92: -33462 | AS92: 1250.26 | AU92: 0 | AV92: 3905 | AX92: 0
A93: 208 | B93: 21 | C93: 00 | D93: 000 | E93: 002 | F93: 000 | I93: 000-025-0001 | J93: Empresas De Cable Con Visitas De Supervisión | K93: Entidad | L93: 2814 | M93: 0 | N93: 2814 | O93: =SUM(T93:AE93) -> 1034 | P93: 808467 | Q93: 775005 | R93: 252517.26 | S93: 0 | T93: 155 | U93: 0 | V93: 276 | W93: 0 | X93: 221 | Y93: 0 | Z93: 286 | AA93: 0 | AB93: 0 | AC93: 0 | AD93: 96 | AE93: 0 | AF93: 0 | AG93: 3112.5 | AI93: 0 | AJ93: 80110.5 | AL93: 0 | AM93: 70234 | AO93: 0 | AP93: 93905 | AR93: -33462 | AS93: 1250.26 | AU93: 0 | AV93: 3905 | AX93: 0
A94: 208 | B94: 21 | C94: 00 | D94: 000 | E94: 002 | F94: 000 | I94: 000-025-0002 | J94: Empresas De Cable Nuevas Con Registro | K94: Entidad | L94: 26 | M94: 0 | N94: 26 | O94: =SUM(T94:AE94) -> 8 | P94: 568018 | Q94: 568018 | R94: 0 | S94: 0 | T94: 1 | U94: 0 | V94: 3 | W94: 0 | X94: 1 | Y94: 0 | Z94: 2 | AA94: 0 | AB94: 0 | AC94: 0 | AD94: 1 | AE94: 0 | AF94: 0 | AG94: 0 | AI94: 0 | AJ94: 0 | AL94: 0 | AM94: 0 | AO94: 0 | AP94: 0 | AR94: 0 | AS94: 0 | AU94: 0 | AV94: 0 | AX94: 0
A95: 208 | B95: 21 | C95: 00 | D95: 000 | E95: 002 | F95: 000 | I95: 000-025-0005 | J95: Empresas Sancionadas Por Incumplimiento A La Ley Del Cable | K95: Entidad | L95: 118 | M95: 0 | N95: 118 | O95: =SUM(T95:AE95) -> 38 | P95: 474910 | Q95: 474910 | R95: 0 | S95: 0 | T95: 6 | U95: 0 | V95: 10 | W95: 0 | X95: 10 | Y95: 0 | Z95: 10 | AA95: 0 | AB95: 0 | AC95: 0 | AD95: 2 | AE95: 0 | AF95: 0 | AG95: 0 | AI95: 0 | AJ95: 0 | AL95: 0 | AM95: 0 | AO95: 0 | AP95: 0 | AR95: 0 | AS95: 0 | AU95: 0 | AV95: 0 | AX95: 0
A96: 209 | B96: 99 | C96: 00 | D96: 000 | E96: 002 | F96: 000 | G96: 000-005 | H96: Personas Jurídicas Beneficiadas Con Aportes Y/O Cuotas Para Comunicaciones | K96: Aporte | L96: 2 | M96: 2 | N96: 0 | O96: =SUM(T96:AE96) -> 0 | P96: 168000 | Q96: 483954 | R96: 0 | S96: -2 | T96: 0 | U96: 0 | V96: 0 | W96: 0 | X96: 0 | Y96: 0 | Z96: 0 | AA96: 0 | AB96: 0 | AC96: 0 | AD96: 0 | AE96: 0 | AF96: 0 | AG96: 0 | AH96: 0 | AI96: 0 | AJ96: 0 | AL96: 0 | AM96: 0 | AO96: 0 | AP96: 0 | AR96: 315954 | AS96: 0 | AU96: 0 | AV96: 0 | AX96: 0
A97: 209 | B97: 99 | C97: 00 | D97: 000 | E97: 002 | F97: 000 | I97: 000-005-0001 | J97: Personas Jurídicas Beneficiadas Con Aportes Y/O Cuotas Para Comunicaciones | K97: Aporte | L97: 2 | M97: 2 | N97: 0 | O97: =SUM(T97:AE97) -> 0 | P97: 168000 | Q97: 483954 | R97: 0 | S97: -2 | T97: 0 | U97: 0 | V97: 0 | W97: 0 | X97: 0 | Y97: 0 | Z97: 0 | AA97: 0 | AB97: 0 | AC97: 0 | AD97: 0 | AE97: 0 | AF97: 0 | AG97: 0 | AI97: 0 | AJ97: 0 | AL97: 0 | AM97: 0 | AO97: 0 | AP97: 0 | AR97: 315954 | AS97: 0 | AU97: 0 | AV97: 0 | AX97: 0
A98: 209 | B98: 99 | C98: 00 | D98: 000 | E98: 003 | F98: 000 | G98: 000-006 | H98: Personas Jurídicas Beneficiadas Con Aportes Y/O Cuotas Para Control Del Medio Ambiente | K98: Aporte | L98: 2 | M98: 2 | N98: 0 | O98: =SUM(T98:AE98) -> 0 | P98: 208000 | Q98: 248000 | R98: 0 | S98: -2 | T98: 0 | U98: 0 | V98: 0 | W98: 0 | X98: 0 | Y98: 0 | Z98: 0 | AA98: 0 | AB98: 0 | AC98: 0 | AD98: 0 | AE98: 0 | AF98: 0 | AG98: 0 | AH98: 0 | AI98: 0 | AJ98: 0 | AL98: 0 | AM98: 0 | AO98: 0 | AP98: 0 | AR98: 40000 | AS98: 0 | AU98: 0 | AV98: 0 | AX98: 0
A99: 209 | B99: 99 | C99: 00 | D99: 000 | E99: 003 | F99: 000 | I99: 000-006-0001 | J99: Personas Jurídicas Beneficiadas Con Aportes Y/O Cuotas Para Control Del Medio Ambiente | K99: Aporte | L99: 2 | M99: 2 | N99: 0 | O99: =SUM(T99:AE99) -> 0 | P99: 208000 | Q99: 248000 | R99: 0 | S99: -2 | T99: 0 | U99: 0 | V99: 0 | W99: 0 | X99: 0 | Y99: 0 | Z99: 0 | AA99: 0 | AB99: 0 | AC99: 0 | AD99: 0 | AE99: 0 | AF99: 0 | AG99: 0 | AI99: 0 | AJ99: 0 | AL99: 0 | AM99: 0 | AO99: 0 | AP99: 0 | AR99: 40000 | AS99: 0 | AU99: 0 | AV99: 0 | AX99: 0
A100: 209 | B100: 16 | C100: 00 | D100: 000 | E100: 001 | F100: 000 | G100: 020-006 | H100: Dirección Y Coordinación | K100: Evento | L100: 850 | M100: 66 | N100: 784 | O100: =SUM(T100:AE100) -> 340 | P100: 15193176 | Q100: 16359975 | R100: 5341804.37 | S100: -63 | T100: 0 | U100: 0 | V100: 79 | W100: 0 | X100: 66 | Y100: 0 | Z100: 66 | AA100: 0 | AB100: 66 | AC100: -3 | AD100: 66 | AE100: 0 | AF100: 0 | AG100: 82637.35 | AH100: 666022.66 | AI100: 0 | AJ100: 161436.48 | AK100: 612926 | AL100: 0 | AM100: 171888.41 | AN100: 589746.93 | AO100: 0 | AP100: 295807.86 | AQ100: 597243.5 | AR100: 0 | AS100: 224795.08 | AT100: 607261.18 | AU100: 0 | AV100: 590940.76 | AW100: 741098.16 | AX100: 1166799
A101: 209 | B101: 16 | C101: 00 | D101: 000 | E101: 001 | F101: 000 | I101: 020-006-0001 | J101: Dirección Y Coordinación | K101: Evento | L101: 850 | M101: 66 | N101: 784 | O101: =SUM(T101:AE101) -> 340 | P101: 15193176 | Q101: 16359975 | R101: 5341804.37 | S101: -63 | T101: 0 | U101: 0 | V101: 79 | W101: 0 | X101: 66 | Y101: 0 | Z101: 66 | AA101: 0 | AB101: 66 | AC101: -3 | AD101: 66 | AE101: 0 | AF101: 0 | AG101: 82637.35 | AH101: 666022.66 | AI101: 0 | AJ101: 161436.48 | AK101: 612926 | AL101: 0 | AM101: 171888.41 | AN101: 589746.93 | AO101: 0 | AP101: 295807.86 | AQ101: 597243.5 | AR101: 0 | AS101: 224795.08 | AT101: 607261.18 | AU101: 0 | AV101: 590940.76 | AW101: 741098.16 | AX101: 1166799
A102: 209 | B102: 16 | C102: 00 | D102: 000 | E102: 002 | F102: 000 | G102: 020-007 | H102: Boletines Con Información Climática | K102: Documento | L102: 16107 | M102: 2308 | N102: 13799 | O102: =SUM(T102:AE102) -> 6686 | P102: 14901860 | Q102: 13103413 | R102: 5043018.56 | S102: -2294 | T102: 0 | U102: 0 | V102: 2126 | W102: 0 | X102: 1143 | Y102: 0 | Z102: 1143 | AA102: 0 | AB102: 1143 | AC102: -14 | AD102: 1145 | AE102: 0 | AF102: 0 | AG102: 7044.42 | AH102: 761111.55 | AI102: 0 | AJ102: 45208.71 | AK102: 775385.03 | AL102: 0 | AM102: 28706.97 | AN102: 781642.43 | AO102: 0 | AP102: 27674.46 | AQ102: 777046.15 | AR102: -355954 | AS102: 59779.77 | AT102: 775659.66 | AU102: 0 | AV102: 42486.78 | AW102: 961272.63 | AX102: -1442493
A103: 209 | B103: 16 | C103: 00 | D103: 000 | E103: 002 | F103: 000 | I103: 020-007-0001 | J103: Usuarios Atendidos Con Información Climática | K103: Documento | L103: 12763 | M103: 1222 | N103: 11541 | O103: =SUM(T103:AE103) -> 5622 | P103: 14190894 | Q103: 12495300 | R103: 4904284.53 | S103: -1208 | T103: 0 | U103: 0 | V103: 1800 | W103: 0 | X103: 959 | Y103: 0 | Z103: 959 | AA103: 0 | AB103: 959 | AC103: -14 | AD103: 959 | AE103: 0 | AF103: 0 | AG103: 6643.34 | AH103: 761111.55 | AI103: 0 | AJ103: 1273.71 | AK103: 775385.03 | AL103: 0 | AM103: 20418.95 | AN103: 781642.43 | AO103: 0 | AP103: 28736.79 | AQ103: 777046.15 | AR103: -305954 | AS103: 8302.51 | AT103: 775659.66 | AU103: 0 | AV103: 6791.78 | AW103: 961272.63 | AX103: -1389640
A104: 209 | B104: 16 | C104: 00 | D104: 000 | E104: 002 | F104: 000 | I104: 020-007-0002 | J104: Boletines Emitidos Con Información Meteorológica | K104: Documento | L104: 3344 | M104: 1086 | N104: 2258 | O104: =SUM(T104:AE104) -> 1064 | P104: 710966 | Q104: 608113 | R104: 138734.03 | S104: -1086 | T104: 0 | U104: 0 | V104: 326 | W104: 0 | X104: 184 | Y104: 0 | Z104: 184 | AA104: 0 | AB104: 184 | AC104: 0 | AD104: 186 | AE104: 0 | AF104: 0 | AG104: 401.08 | AI104: 0 | AJ104: 43935 | AL104: 0 | AM104: 8288.02 | AO104: 0 | AP104: -1062.33 | AR104: -50000 | AS104: 51477.26 | AU104: 0 | AV104: 35695 | AX104: -52853
A105: 209 | B105: 16 | C105: 00 | D105: 000 | E105: 003 | F105: 000 | G105: 020-008 | H105: Información De Amenaza Sísmica Y Volcánica Registrada | K105: Documento | L105: 8100 | M105: -3880 | N105: 11980 | O105: =SUM(T105:AE105) -> 4735 | P105: 4918597 | Q105: 4778947 | R105: 1964225.64 | S105: 3880 | T105: 0 | U105: 0 | V105: 1403 | W105: 0 | X105: 335 | Y105: 0 | Z105: 999 | AA105: 0 | AB105: 999 | AC105: 0 | AD105: 999 | AE105: 0 | AF105: 0 | AG105: 0 | AH105: 275098.9 | AI105: 0 | AJ105: 18195 | AK105: 283793.48 | AL105: 0 | AM105: 16442.25 | AN105: 285978.72 | AO105: 0 | AP105: 41784.35 | AQ105: 276898.6 | AR105: 0 | AS105: 48980 | AT105: 341439.12 | AU105: 0 | AV105: 42109.95 | AW105: 333505.27 | AX105: -139650
A106: 209 | B106: 16 | C106: 00 | D106: 000 | E106: 003 | F106: 000 | I106: 020-008-0001 | J106: Boletines Emitidos Con Información Geológica | K106: Documento | L106: 3872 | M106: -2072 | N106: 5944 | O106: =SUM(T106:AE106) -> 2622 | P106: 3746500 | Q106: 3618000 | R106: 1517853.64 | S106: 2072 | T106: 0 | U106: 0 | V106: 825 | W106: 0 | X106: 309 | Y106: 0 | Z106: 496 | AA106: 0 | AB106: 496 | AC106: 0 | AD106: 496 | AE106: 0 | AF106: 0 | AG106: 0 | AH106: 223706.85 | AI106: 0 | AJ106: 0 | AK106: 230777.17 | AL106: 0 | AM106: 11218.25 | AN106: 232554.18 | AO106: 0 | AP106: 16082.85 | AQ106: 225170.34 | AR106: 0 | AS106: 22855 | AT106: 277653.85 | AU106: 0 | AV106: 6633 | AW106: 271202.15 | AX106: -128500
A107: 209 | B107: 16 | C107: 00 | D107: 000 | E107: 003 | F107: 000 | I107: 020-008-0002 | J107: Informes Emitidos Sobre Deslizamiento De Tierra | K107: Documento | L107: 4228 | M107: -1808 | N107: 6036 | O107: =SUM(T107:AE107) -> 2113 | P107: 1172097 | Q107: 1160947 | R107: 446372 | S107: 1808 | T107: 0 | U107: 0 | V107: 578 | W107: 0 | X107: 26 | Y107: 0 | Z107: 503 | AA107: 0 | AB107: 503 | AC107: 0 | AD107: 503 | AE107: 0 | AF107: 0 | AG107: 0 | AH107: 51392.05 | AI107: 0 | AJ107: 18195 | AK107: 53016.31 | AL107: 0 | AM107: 5224 | AN107: 53424.54 | AO107: 0 | AP107: 25701.5 | AQ107: 51728.26 | AR107: 0 | AS107: 26125 | AT107: 63785.27 | AU107: 0 | AV107: 35476.95 | AW107: 62303.12 | AX107: -11150
A108: 209 | B108: 16 | C108: 00 | D108: 000 | E108: 004 | F108: 000 | G108: 020-009 | H108: Información De Actividad Hidrológica Registrada | K108: Documento | L108: 9508 | M108: -61 | N108: 9569 | O108: =SUM(T108:AE108) -> 4771 | P108: 14693204 | Q108: 13697505 | R108: 3285178.56 | S108: 74 | T108: 0 | U108: 0 | V108: 1595 | W108: 0 | X108: 797 | Y108: 0 | Z108: 800 | AA108: 0 | AB108: 796 | AC108: -13 | AD108: 796 | AE108: 0 | AF108: 0 | AG108: 48710.64 | AH108: 446732.09 | AI108: 0 | AJ108: 16956.89 | AK108: 439289.17 | AL108: 0 | AM108: 119587.47 | AN108: 436877.25 | AO108: 0 | AP108: 71273.39 | AQ108: 418269.5 | AR108: 0 | AS108: 35539.01 | AT108: 467338.26 | AU108: 0 | AV108: 127683.5 | AW108: 656921.39 | AX108: -995699
A109: 209 | B109: 16 | C109: 00 | D109: 000 | E109: 004 | F109: 000 | I109: 020-009-0001 | J109: Boletines Con Información Hidrológica | K109: Documento | L109: 3265 | M109: -1107 | N109: 4372 | O109: =SUM(T109:AE109) -> 2167 | P109: 5748425 | Q109: 4828382 | R109: 1359398.88 | S109: 1120 | T109: 0 | U109: 0 | V109: 727 | W109: 0 | X109: 363 | Y109: 0 | Z109: 366 | AA109: 0 | AB109: 362 | AC109: -13 | AD109: 362 | AE109: 0 | AF109: 0 | AG109: 2204.63 | AH109: 232224.29 | AI109: 0 | AJ109: 764.08 | AK109: 194043.69 | AL109: 0 | AM109: 20866.43 | AN109: 192978.29 | AO109: 0 | AP109: 17472 | AQ109: 184758.84 | AR109: 0 | AS109: 15619.41 | AT109: 206433.59 | AU109: 0 | AV109: 1857 | AW109: 290176.63 | AX109: -920043
A110: 209 | B110: 16 | C110: 00 | D110: 000 | E110: 004 | F110: 000 | I110: 020-009-0002 | J110: Publicaciones Anuales Con Información Consolidada De Efemérides Solar, Pronóstico De Mareas, Estudios De Calidad De Agua Y De Cuencas | K110: Documento | L110: 2985 | M110: 45 | N110: 2940 | O110: =SUM(T110:AE110) -> 1476 | P110: 8542513 | Q110: 8504441 | R110: 1885104.33 | S110: -45 | T110: 0 | U110: 0 | V110: 492 | W110: 0 | X110: 246 | Y110: 0 | Z110: 246 | AA110: 0 | AB110: 246 | AC110: 0 | AD110: 246 | AE110: 0 | AF110: 0 | AG110: 40230.15 | AH110: 214507.8 | AI110: 0 | AJ110: 14482.35 | AK110: 245245.48 | AL110: 0 | AM110: 82638.05 | AN110: 243898.96 | AO110: 0 | AP110: 47579.39 | AQ110: 233510.66 | AR110: 0 | AS110: 13315.56 | AT110: 260904.67 | AU110: 0 | AV110: 122046.5 | AW110: 366744.76 | AX110: -38072
A111: 209 | B111: 16 | C111: 00 | D111: 000 | E111: 004 | F111: 000 | I111: 020-009-0003 | J111: Boletines Emitidos Con Información Del Índice De Calidad Del Aire | K111: Documento | L111: 3258 | M111: 1001 | N111: 2257 | O111: =SUM(T111:AE111) -> 1128 | P111: 402266 | Q111: 364682 | R111: 40675.35 | S111: -1001 | T111: 0 | U111: 0 | V111: 376 | W111: 0 | X111: 188 | Y111: 0 | Z111: 188 | AA111: 0 | AB111: 188 | AC111: 0 | AD111: 188 | AE111: 0 | AF111: 0 | AG111: 6275.86 | AI111: 0 | AJ111: 1710.46 | AL111: 0 | AM111: 16082.99 | AO111: 0 | AP111: 6222 | AR111: 0 | AS111: 6604.04 | AU111: 0 | AV111: 3780 | AX111: -37584
A112: 210 | B112: 99 | C112: 00 | D112: 000 | E112: 002 | F112: 000 | G112: 000-005 | H112: Personas Jurídicas Beneficiadas Con Aportes Y/O Cuotas Para Comunicaciones | K112: Aporte | L112: 3 | M112: 1 | N112: 2 | O112: =SUM(T112:AE112) -> 2 | P112: 615180 | Q112: 659642 | R112: 245041.65 | S112: -1 | T112: 0 | U112: 0 | V112: 0 | W112: 0 | X112: 0 | Y112: 0 | Z112: 0 | AA112: 0 | AB112: 1 | AC112: 0 | AD112: 1 | AE112: 0 | AF112: 0 | AG112: 0 | AH112: 0 | AI112: 0 | AJ112: 0 | AL112: 0 | AM112: 0 | AO112: 0 | AP112: 0 | AR112: 0 | AS112: 245041.65 | AU112: 44462 | AV112: 0 | AX112: 0
A113: 210 | B113: 99 | C113: 00 | D113: 000 | E113: 002 | F113: 000 | I113: 000-005-0001 | J113: Personas Jurídicas Beneficiadas Con Aportes Y/O Cuotas Para Comunicaciones | K113: Aporte | L113: 3 | M113: 1 | N113: 2 | O113: =SUM(T113:AE113) -> 2 | P113: 615180 | Q113: 659642 | R113: 245041.65 | S113: -1 | T113: 0 | U113: 0 | V113: 0 | W113: 0 | X113: 0 | Y113: 0 | Z113: 0 | AA113: 0 | AB113: 1 | AC113: 0 | AD113: 1 | AE113: 0 | AF113: 0 | AG113: 0 | AI113: 0 | AJ113: 0 | AL113: 0 | AM113: 0 | AO113: 0 | AP113: 0 | AR113: 0 | AS113: 245041.65 | AU113: 44462 | AV113: 0 | AX113: 0
A114: 210 | B114: 17 | C114: 00 | D114: 000 | E114: 001 | F114: 000 | G114: 000-029 | H114: Dirección Y Coordinación | K114: Evento | L114: 608 | M114: -41 | N114: 649 | O114: =SUM(T114:AE114) -> 256 | P114: 16300622 | Q114: 15949326 | R114: 6263605.45 | S114: -8 | T114: 39 | U114: -1 | V114: 2 | W114: 50 | X114: 3 | Y114: 0 | Z114: 115 | AA114: 0 | AB114: 2 | AC114: 0 | AD114: 46 | AE114: 0 | AF114: 0 | AG114: 19252.25 | AH114: 690711.08 | AI114: -485300 | AJ114: 105945.65 | AK114: 647755.22 | AL114: 0 | AM114: 61920 | AN114: 539339.78 | AO114: -13996 | AP114: 750070.42 | AQ114: 752194.38 | AR114: 148000 | AS114: 683329.93 | AT114: 809013.24 | AU114: 0 | AV114: 521475.5 | AW114: 682598 | AX114: 0
A115: 210 | B115: 17 | C115: 00 | D115: 000 | E115: 001 | F115: 000 | I115: 000-029-0001 | J115: Dirección Y Coordinación | K115: Evento | L115: 608 | M115: -41 | N115: 649 | O115: =SUM(T115:AE115) -> 256 | P115: 16300622 | Q115: 15949326 | R115: 6263605.45 | S115: -8 | T115: 39 | U115: -1 | V115: 2 | W115: 50 | X115: 3 | Y115: 0 | Z115: 115 | AA115: 0 | AB115: 2 | AC115: 0 | AD115: 46 | AE115: 0 | AF115: 0 | AG115: 19252.25 | AH115: 690711.08 | AI115: -485300 | AJ115: 105945.65 | AK115: 647755.22 | AL115: 0 | AM115: 61920 | AN115: 539339.78 | AO115: -13996 | AP115: 750070.42 | AQ115: 752194.38 | AR115: 148000 | AS115: 683329.93 | AT115: 809013.24 | AU115: 0 | AV115: 521475.5 | AW115: 682598 | AX115: 0
A116: 210 | B116: 17 | C116: 00 | D116: 000 | E116: 002 | F116: 000 | G116: 000-030 | H116: Personas Individuales Y/O Jurídicas Con Servicios Postales Otorgados | K116: Persona | L116: 476400 | M116: -65799 | N116: 542199 | O116: =SUM(T116:AE116) -> 263590 | P116: 12442858 | Q116: 12749692 | R116: 5110572.01 | S116: 71142 | T116: 27430 | U116: 106 | V116: 31560 | W116: -5449 | X116: 28822 | Y116: 0 | Z116: 22678 | AA116: 0 | AB116: 119490 | AC116: 0 | AD116: 38953 | AE116: 0 | AF116: 0 | AG116: 12836.1 | AH116: 782532.27 | AI116: 485300 | AJ116: 104447.24 | AK116: 828913.79 | AL116: 0 | AM116: 50170.39 | AN116: 781693.56 | AO116: 13996 | AP116: 49710.83 | AQ116: 633551.72 | AR116: -148000 | AS116: 71288.9 | AT116: 948000 | AU116: -44462 | AV116: 63927.21 | AW116: 783500 | AX116: 0
A117: 210 | B117: 17 | C117: 00 | D117: 000 | E117: 002 | F117: 000 | I117: 000-030-0001 | J117: Personas Individuales Y/O Jurídicas Con Servicios Postales Otorgados | K117: Persona | L117: 476400 | M117: -65799 | N117: 542199 | O117: =SUM(T117:AE117) -> 263590 | P117: 12442858 | Q117: 12749692 | R117: 5110572.01 | S117: 71142 | T117: 27430 | U117: 106 | V117: 31560 | W117: -5449 | X117: 28822 | Y117: 0 | Z117: 22678 | AA117: 0 | AB117: 119490 | AC117: 0 | AD117: 38953 | AE117: 0 | AF117: 0 | AG117: 12836.1 | AH117: 782532.27 | AI117: 485300 | AJ117: 104447.24 | AK117: 828913.79 | AL117: 0 | AM117: 50170.39 | AN117: 781693.56 | AO117: 13996 | AP117: 49710.83 | AQ117: 633551.72 | AR117: -148000 | AS117: 71288.9 | AT117: 948000 | AU117: -44462 | AV117: 63927.21 | AW117: 783500 | AX117: 0
A118: 211 | B118: 99 | C118: 00 | D118: 000 | E118: 002 | F118: 000 | G118: 000-005 | H118: Personas Jurídicas Beneficiadas Con Aportes Y/O Cuotas Para Comunicaciones | K118: Aporte | L118: 2 | M118: 0 | N118: 2 | O118: =SUM(T118:AE118) -> 0 | P118: 900000 | Q118: 900000 | R118: 132829.67 | S118: 0 | T118: 0 | U118: 0 | V118: 0 | W118: 0 | X118: 0 | Y118: 0 | Z118: 0 | AA118: 0 | AB118: 0 | AC118: 0 | AD118: 0 | AE118: 0 | AF118: 0 | AG118: 0 | AH118: 0 | AI118: 0 | AJ118: 132829.67 | AL118: 0 | AM118: 0 | AO118: 0 | AP118: 0 | AR118: 0 | AS118: 0 | AU118: 0 | AV118: 0 | AX118: 0
A119: 211 | B119: 99 | C119: 00 | D119: 000 | E119: 002 | F119: 000 | I119: 000-005-0001 | J119: Personas Jurídicas Beneficiadas Con Aportes Y/O Cuotas Para Comunicaciones | K119: Aporte | L119: 2 | M119: 0 | N119: 2 | O119: =SUM(T119:AE119) -> 0 | P119: 900000 | Q119: 900000 | R119: 132829.67 | S119: 0 | T119: 0 | U119: 0 | V119: 0 | W119: 0 | X119: 0 | Y119: 0 | Z119: 0 | AA119: 0 | AB119: 0 | AC119: 0 | AD119: 0 | AE119: 0 | AF119: 0 | AG119: 0 | AI119: 0 | AJ119: 132829.67 | AL119: 0 | AM119: 0 | AO119: 0 | AP119: 0 | AR119: 0 | AS119: 0 | AU119: 0 | AV119: 0 | AX119: 0
A120: 211 | B120: 22 | C120: 00 | D120: 000 | E120: 001 | F120: 000 | G120: 022-007 | H120: Dirección Y Coordinación | K120: Evento | L120: 154 | M120: 0 | N120: 154 | O120: =SUM(T120:AE120) -> 80 | P120: 18250293 | Q120: 18250293 | R120: 5301530.57 | S120: 0 | T120: 51 | U120: 0 | V120: 4 | W120: 0 | X120: 10 | Y120: 0 | Z120: 5 | AA120: 0 | AB120: 5 | AC120: 0 | AD120: 5 | AE120: 0 | AF120: 0 | AG120: 209747.53 | AH120: 706765.72 | AI120: 0 | AJ120: 499944.5 | AK120: 511394.54 | AL120: 0 | AM120: 280938 | AN120: 491219.18 | AO120: 0 | AP120: 428899.19 | AQ120: 478791.6 | AR120: 0 | AS120: 193458.02 | AT120: 490992.31 | AU120: 0 | AV120: 573642.24 | AW120: 435737.74 | AX120: 0
A121: 211 | B121: 22 | C121: 00 | D121: 000 | E121: 001 | F121: 000 | I121: 022-007-0001 | J121: Dirección Y Coordinación | K121: Evento | L121: 154 | M121: 0 | N121: 154 | O121: =SUM(T121:AE121) -> 80 | P121: 18250293 | Q121: 18250293 | R121: 5301530.57 | S121: 0 | T121: 51 | U121: 0 | V121: 4 | W121: 0 | X121: 10 | Y121: 0 | Z121: 5 | AA121: 0 | AB121: 5 | AC121: 0 | AD121: 5 | AE121: 0 | AF121: 0 | AG121: 209747.53 | AH121: 706765.72 | AI121: 0 | AJ121: 499944.5 | AK121: 511394.54 | AL121: 0 | AM121: 280938 | AN121: 491219.18 | AO121: 0 | AP121: 428899.19 | AQ121: 478791.6 | AR121: 0 | AS121: 193458.02 | AT121: 490992.31 | AU121: 0 | AV121: 573642.24 | AW121: 435737.74 | AX121: 0
A122: 211 | B122: 22 | C122: 00 | D122: 000 | E122: 002 | F122: 000 | G122: 022-008 | H122: Proveedores, Usuarios Y Usufructuarios De Frecuencias Con Servicios De Regulación | K122: Documento | L122: 4 | M122: 0 | N122: 4 | O122: =SUM(T122:AE122) -> 12 | P122: 1919786 | Q122: 1919786 | R122: 538816.06 | S122: 0 | T122: 0 | U122: 0 | V122: 0 | W122: 0 | X122: 1 | Y122: 0 | Z122: 10 | AA122: 0 | AB122: 1 | AC122: 0 | AD122: 0 | AE122: 0 | AF122: 0 | AG122: 0 | AH122: 122744.68 | AI122: 0 | AJ122: 0 | AK122: 74690 | AL122: 0 | AM122: 7950 | AN122: 81931.38 | AO122: 0 | AP122: 27430 | AQ122: 74690 | AR122: 0 | AS122: 0 | AT122: 74690 | AU122: 0 | AV122: 0 | AW122: 74690 | AX122: 0
A123: 211 | B123: 22 | C123: 00 | D123: 000 | E123: 002 | F123: 000 | I123: 022-008-0001 | J123: Títulos De Usufructo Emitidos Para Personas Individuales Y/O Jurídicas | K123: Documento | L123: 1 | M123: 0 | N123: 1 | O123: =SUM(T123:AE123) -> 1 | P123: 1848739 | Q123: 1848739 | R123: 512811.06 | S123: 0 | T123: 0 | U123: 0 | V123: 0 | W123: 0 | X123: 1 | Y123: 0 | Z123: 0 | AA123: 0 | AB123: 0 | AC123: 0 | AD123: 0 | AE123: 0 | AF123: 0 | AG123: 0 | AH123: 122744.68 | AI123: 0 | AJ123: 0 | AK123: 74690 | AL123: 0 | AM123: 0 | AN123: 81931.38 | AO123: 0 | AP123: 9375 | AQ123: 74690 | AR123: 0 | AS123: 0 | AT123: 74690 | AU123: 0 | AV123: 0 | AW123: 74690 | AX123: 0
A124: 211 | B124: 22 | C124: 00 | D124: 000 | E124: 002 | F124: 000 | I124: 022-008-0002 | J124: Licencias Emitidas A Proveedores Satelitales | K124: Documento | L124: 2 | M124: 0 | N124: 2 | O124: =SUM(T124:AE124) -> 1 | P124: 14245 | Q124: 14245 | R124: 0 | S124: 0 | T124: 0 | U124: 0 | V124: 0 | W124: 0 | X124: 0 | Y124: 0 | Z124: 0 | AA124: 0 | AB124: 1 | AC124: 0 | AD124: 0 | AE124: 0 | AF124: 0 | AG124: 0 | AI124: 0 | AJ124: 0 | AL124: 0 | AM124: 0 | AO124: 0 | AP124: 0 | AR124: 0 | AS124: 0 | AU124: 0 | AV124: 0 | AX124: 0
A125: 211 | B125: 22 | C125: 00 | D125: 000 | E125: 002 | F125: 000 | I125: 022-008-0003 | J125: Licencias Emitidas A Usuarios Satelitales | K125: Documento | L125: 1 | M125: 0 | N125: 1 | O125: =SUM(T125:AE125) -> 0 | P125: 36627 | Q125: 36627 | R125: 17435 | S125: 0 | T125: 0 | U125: 0 | V125: 0 | W125: 0 | X125: 0 | Y125: 0 | Z125: 0 | AA125: 0 | AB125: 0 | AC125: 0 | AD125: 0 | AE125: 0 | AF125: 0 | AG125: 0 | AI125: 0 | AJ125: 0 | AL125: 0 | AM125: 0 | AO125: 0 | AP125: 17435 | AR125: 0 | AS125: 0 | AU125: 0 | AV125: 0 | AX125: 0
A126: 211 | B126: 22 | C126: 00 | D126: 000 | E126: 002 | F126: 000 | I126: 022-008-0004 | J126: Monitoreo Al Espectro Radioeléctrico | K126: Evento | L126: 175 | M126: 0 | N126: 175 | O126: =SUM(T126:AE126) -> 20 | P126: 20175 | Q126: 20175 | R126: 8570 | S126: 0 | T126: 0 | U126: 0 | V126: 0 | W126: 0 | X126: 0 | Y126: 0 | Z126: 10 | AA126: 0 | AB126: 10 | AC126: 0 | AD126: 0 | AE126: 0 | AF126: 0 | AG126: 0 | AI126: 0 | AJ126: 0 | AL126: 0 | AM126: 7950 | AO126: 0 | AP126: 620 | AR126: 0 | AS126: 0 | AU126: 0 | AV126: 0 | AX126: 0
A127: 211 | B127: 22 | C127: 00 | D127: 000 | E127: 003 | F127: 000 | G127: 022-009 | H127: Recursos De Telefonía Regulados | K127: Documento | L127: 5267 | M127: 0 | N127: 5267 | O127: =SUM(T127:AE127) -> 3379 | P127: 1951012 | Q127: 1951012 | R127: 771847.8 | S127: 0 | T127: 2126 | U127: 0 | V127: 168 | W127: 0 | X127: 157 | Y127: 0 | Z127: 154 | AA127: 0 | AB127: 370 | AC127: 0 | AD127: 404 | AE127: 0 | AF127: 0 | AG127: 0 | AH127: 181804.32 | AI127: 0 | AJ127: 0 | AK127: 115401.8 | AL127: 0 | AM127: 0 | AN127: 128436.28 | AO127: 0 | AP127: 0 | AQ127: 115401.8 | AR127: 0 | AS127: 0 | AT127: 115401.8 | AU127: 0 | AV127: 0 | AW127: 115401.8 | AX127: 0
A128: 211 | B128: 22 | C128: 00 | D128: 000 | E128: 003 | F128: 000 | I128: 022-009-0001 | J128: Operadores De Telefonía Registrados | K128: Registro | L128: 184 | M128: 0 | N128: 184 | O128: =SUM(T128:AE128) -> 100 | P128: 1933072 | Q128: 1933072 | R128: 771847.8 | S128: 0 | T128: 12 | U128: 0 | V128: 44 | W128: 0 | X128: 20 | Y128: 0 | Z128: 5 | AA128: 0 | AB128: 14 | AC128: 0 | AD128: 5 | AE128: 0 | AF128: 0 | AG128: 0 | AH128: 181804.32 | AI128: 0 | AJ128: 0 | AK128: 115401.8 | AL128: 0 | AM128: 0 | AN128: 128436.28 | AO128: 0 | AP128: 0 | AQ128: 115401.8 | AR128: 0 | AS128: 0 | AT128: 115401.8 | AU128: 0 | AV128: 0 | AW128: 115401.8 | AX128: 0
A129: 211 | B129: 22 | C129: 00 | D129: 000 | E129: 003 | F129: 000 | I129: 022-009-0002 | J129: Numeración Asignada A Personas Jurídicas Y /O Individuales | K129: Documento | L129: 125 | M129: 0 | N129: 125 | O129: =SUM(T129:AE129) -> 67 | P129: 3533 | Q129: 3533 | R129: 0 | S129: 0 | T129: 12 | U129: 0 | V129: 17 | W129: 0 | X129: 17 | Y129: 0 | Z129: 14 | AA129: 0 | AB129: 4 | AC129: 0 | AD129: 3 | AE129: 0 | AF129: 0 | AG129: 0 | AI129: 0 | AJ129: 0 | AL129: 0 | AM129: 0 | AO129: 0 | AP129: 0 | AR129: 0 | AS129: 0 | AU129: 0 | AV129: 0 | AX129: 0
A130: 211 | B130: 22 | C130: 00 | D130: 000 | E130: 003 | F130: 000 | I130: 022-009-0003 | J130: Puntos De Señalización Asignados A Personas Jurídicas Y/O Individuales | K130: Documento | L130: 30 | M130: 0 | N130: 30 | O130: =SUM(T130:AE130) -> 8 | P130: 11392 | Q130: 11392 | R130: 0 | S130: 0 | T130: 0 | U130: 0 | V130: 1 | W130: 0 | X130: 0 | Y130: 0 | Z130: 0 | AA130: 0 | AB130: 6 | AC130: 0 | AD130: 1 | AE130: 0 | AF130: 0 | AG130: 0 | AI130: 0 | AJ130: 0 | AL130: 0 | AM130: 0 | AO130: 0 | AP130: 0 | AR130: 0 | AS130: 0 | AU130: 0 | AV130: 0 | AX130: 0
A131: 211 | B131: 22 | C131: 00 | D131: 000 | E131: 003 | F131: 000 | I131: 022-009-0004 | J131: Constancias De Inscripción De Usuarios Jurídicos Y/O Individuales De Telecomunicaciones Móviles | K131: Documento | L131: 5112 | M131: 0 | N131: 5112 | O131: =SUM(T131:AE131) -> 3304 | P131: 3015 | Q131: 3015 | R131: 0 | S131: 0 | T131: 2114 | U131: 0 | V131: 150 | W131: 0 | X131: 140 | Y131: 0 | Z131: 140 | AA131: 0 | AB131: 360 | AC131: 0 | AD131: 400 | AE131: 0 | AF131: 0 | AG131: 0 | AI131: 0 | AJ131: 0 | AL131: 0 | AM131: 0 | AO131: 0 | AP131: 0 | AR131: 0 | AS131: 0 | AU131: 0 | AV131: 0 | AX131: 0
A132: 212 | B132: 23 | C132: 00 | D132: 000 | E132: 001 | F132: 000 | G132: 000-010 | H132: Dirección Y Coordinación | K132: Evento | L132: 38 | M132: 4 | N132: 34 | O132: =SUM(T132:AE132) -> 34 | P132: 5076663 | Q132: 5096481 | R132: 1991996.96 | S132: -4 | T132: 0 | U132: 0 | V132: 32 | W132: 0 | X132: 1 | Y132: 0 | Z132: 1 | AA132: 0 | AB132: 0 | AC132: 0 | AD132: 0 | AE132: 0 | AF132: 0 | AG132: 48500 | AH132: 269151.66 | AI132: 0 | AJ132: 90521.25 | AK132: 208922.1 | AL132: 0 | AM132: 102407.35 | AN132: 220999.69 | AO132: 0 | AP132: 109904.5 | AQ132: 196492 | AR132: 19818 | AS132: 112355.91 | AT132: 234429.78 | AU132: 0 | AV132: 241496.2 | AW132: 156816.52 | AX132: 0
A133: 212 | B133: 23 | C133: 00 | D133: 000 | E133: 001 | F133: 000 | I133: 000-010-0001 | J133: Dirección Y Coordinación | K133: Evento | L133: 38 | M133: 4 | N133: 34 | O133: =SUM(T133:AE133) -> 34 | P133: 5076663 | Q133: 5096481 | R133: 1991996.96 | S133: -4 | T133: 0 | U133: 0 | V133: 32 | W133: 0 | X133: 1 | Y133: 0 | Z133: 1 | AA133: 0 | AB133: 0 | AC133: 0 | AD133: 0 | AE133: 0 | AF133: 0 | AG133: 48500 | AH133: 269151.66 | AI133: 0 | AJ133: 90521.25 | AK133: 208922.1 | AL133: 0 | AM133: 102407.35 | AN133: 220999.69 | AO133: 0 | AP133: 109904.5 | AQ133: 196492 | AR133: 19818 | AS133: 112355.91 | AT133: 234429.78 | AU133: 0 | AV133: 241496.2 | AW133: 156816.52 | AX133: 0
A134: 212 | B134: 23 | C134: 00 | D134: 000 | E134: 002 | F134: 000 | G134: 000-015 | H134: Personas Beneficiadas Con Proyectos, Supervisión De Telefonía Y Conectividad Subsidiados | K134: Persona | L134: 707 | M134: 681 | N134: 26 | O134: =SUM(T134:AE134) -> 0 | P134: 2145715 | Q134: 2125897 | R134: 485150.05 | S134: -681 | T134: 0 | U134: 0 | V134: 0 | W134: 0 | X134: 0 | Y134: 0 | Z134: 0 | AA134: 0 | AB134: 0 | AC134: 0 | AD134: 0 | AE134: 0 | AF134: 0 | AG134: 20500 | AH134: 78580.64 | AI134: 0 | AJ134: 20500 | AK134: 70551.72 | AL134: 0 | AM134: 0 | AN134: 54000 | AO134: 0 | AP134: 0 | AQ134: 47750 | AR134: -19818 | AS134: 57474.47 | AT134: 41500 | AU134: 0 | AV134: 52793.22 | AW134: 41500 | AX134: 0
A135: 212 | B135: 23 | C135: 00 | D135: 000 | E135: 002 | F135: 000 | I135: 000-015-0001 | J135: Personas Beneficiadas Con Proyectos, Supervisión De Telefonía Y Conectividad Subsidiados | K135: Persona | L135: 707 | M135: 681 | N135: 26 | O135: =SUM(T135:AE135) -> 0 | P135: 2145715 | Q135: 2125897 | R135: 485150.05 | S135: -681 | T135: 0 | U135: 0 | V135: 0 | W135: 0 | X135: 0 | Y135: 0 | Z135: 0 | AA135: 0 | AB135: 0 | AC135: 0 | AD135: 0 | AE135: 0 | AF135: 0 | AG135: 20500 | AH135: 78580.64 | AI135: 0 | AJ135: 20500 | AK135: 70551.72 | AL135: 0 | AM135: 0 | AN135: 54000 | AO135: 0 | AP135: 0 | AQ135: 47750 | AR135: -19818 | AS135: 57474.47 | AT135: 41500 | AU135: 0 | AV135: 52793.22 | AW135: 41500 | AX135: 0
A136: 214 | B136: 20 | C136: 00 | D136: 000 | E136: 001 | F136: 000 | G136: 000-022 | H136: Dirección Y Coordinación | K136: Evento | L136: 201 | M136: 0 | N136: 201 | O136: =SUM(T136:AE136) -> 68 | P136: 10935606 | Q136: 11714254 | R136: 3960904.84 | S136: 0 | T136: 0 | U136: 0 | V136: 0 | W136: 0 | X136: 60 | Y136: 0 | Z136: 4 | AA136: 0 | AB136: 0 | AC136: 0 | AD136: 4 | AE136: 0 | AF136: 0 | AG136: 343101.22 | AH136: 253259.68 | AI136: 0 | AJ136: 305008.12 | AK136: 246808.06 | AL136: 0 | AM136: 491841.25 | AN136: 288126.62 | AO136: 0 | AP136: 270943.07 | AQ136: 253175 | AR136: 0 | AS136: 250068.36 | AT136: 334425 | AU136: 0 | AV136: 639219.43 | AW136: 284929.03 | AX136: 778648
A137: 214 | B137: 20 | C137: 00 | D137: 000 | E137: 001 | F137: 000 | I137: 000-022-0001 | J137: Dirección Y Coordinación | K137: Evento | L137: 201 | M137: 0 | N137: 201 | O137: =SUM(T137:AE137) -> 68 | P137: 10935606 | Q137: 11714254 | R137: 3960904.84 | S137: 0 | T137: 0 | U137: 0 | V137: 0 | W137: 0 | X137: 60 | Y137: 0 | Z137: 4 | AA137: 0 | AB137: 0 | AC137: 0 | AD137: 4 | AE137: 0 | AF137: 0 | AG137: 343101.22 | AH137: 253259.68 | AI137: 0 | AJ137: 305008.12 | AK137: 246808.06 | AL137: 0 | AM137: 491841.25 | AN137: 288126.62 | AO137: 0 | AP137: 270943.07 | AQ137: 253175 | AR137: 0 | AS137: 250068.36 | AT137: 334425 | AU137: 0 | AV137: 639219.43 | AW137: 284929.03 | AX137: 778648
A138: 214 | B138: 20 | C138: 00 | D138: 000 | E138: 002 | F138: 000 | G138: 000-023 | H138: Familias Beneficiadas Con Adjudicación De Propiedad De Vivienda | K138: Familia | L138: 126 | M138: 126 | N138: 0 | O138: =SUM(T138:AE138) -> 0 | P138: =SUBTOTAL(9,P139:P142) -> 89961 | Q138: =SUBTOTAL(9,Q139:Q142) -> 1311313 | R138: =+AG138+AH138+AJ138+AK138+AM138+AN138+AP138+AQ138+AS138+AT138+AV138+AW138 -> 20993.83 | S138: -126 | T138: 0 | U138: 0 | V138: 0 | W138: 0 | X138: 0 | Y138: 0 | Z138: 0 | AA138: 0 | AB138: 0 | AC138: 0 | AD138: 0 | AE138: 0 | AF138: 0 | AG138: 0 | AH138: 0 | AI138: 0 | AJ138: 0 | AK138: 0 | AL138: 0 | AM138: 0 | AN138: 0 | AO138: 0 | AP138: 20993.83 | AQ138: 0 | AR138: 0 | AS138: 0 | AT138: 0 | AU138: 0 | AV138: 0 | AW138: 0 | AX138: 0
A139: 214 | B139: 20 | C139: 00 | D139: 000 | E139: 002 | F139: 000 | I139: 000-023-0001 | J139: Familias Beneficiadas Con Adjudicación De Propiedad De Vivienda | K139: Familia | L139: 126 | M139: 126 | N139: 0 | O139: =SUM(T139:AE139) -> 0 | P139: 86456 | Q139: 0 | R139: 0 | S139: -126 | T139: 0 | U139: 0 | V139: 0 | W139: 0 | X139: 0 | Y139: 0 | Z139: 0 | AA139: 0 | AB139: 0 | AC139: 0 | AD139: 0 | AE139: 0 | AF139: 0 | AG139: 0 | AI139: -86456 | AJ139: 0 | AL139: 0 | AM139: 0 | AO139: 0 | AP139: 0 | AR139: 0 | AS139: 0 | AU139: 0 | AV139: 0 | AX139: 0
A140: 214 | B140: 20 | C140: 00 | D140: 000 | E140: 002 | F140: 000 | I140: 000-023-0002 | J140: Recuperación De La Cartera Crediticia | K140: Unidad monetaria | L140: 1389000 | M140: 1389000 | N140: 0 | O140: =SUM(T140:AE140) -> 0 | P140: 3505 | Q140: 0 | R140: 0 | S140: -1389000 | T140: 0 | U140: 0 | V140: 0 | W140: 0 | X140: 0 | Y140: 0 | Z140: 0 | AA140: 0 | AB140: 0 | AC140: 0 | AD140: 0 | AE140: 0 | AF140: 0 | AG140: 0 | AI140: -3505 | AJ140: 0 | AL140: 0 | AM140: 0 | AO140: 0 | AP140: 0 | AR140: 0 | AS140: 0 | AU140: 0 | AV140: 0 | AX140: 0
A141: 214 | B141: 20 | C141: 00 | D141: 000 | E141: 002 | F141: 000 | I141: 000-023-0003 | J141: Familias Beneficiadas Con Legalización De Bien Inmueble | K141: Familia | L141: 0 | M141: -400 | N141: 400 | O141: =SUM(T141:AE141) -> 386 | P141: 0 | Q141: 622140 | R141: 0 | S141: 14 | T141: 0 | U141: 0 | V141: 0 | W141: 0 | X141: 0 | Y141: 386 | Z141: 0 | AA141: 0 | AB141: 0 | AC141: 0 | AD141: 0 | AE141: 0 | AF141: 0 | AG141: 0 | AI141: 22140 | AJ141: 0 | AL141: 0 | AM141: 0 | AO141: 0 | AP141: 0 | AR141: 0 | AS141: 0 | AU141: 0 | AV141: 0 | AX141: 600000
A142: 214 | B142: 20 | C142: 00 | D142: 000 | E142: 002 | F142: 000 | I142: 000-023-0004 | J142: Familias Beneficiadas Con Proceso De Elegibilidad Para Adjudicación De Bien Inmueble | K142: Familia | L142: 0 | M142: -290 | N142: 290 | O142: =SUM(T142:AE142) -> 290 | P142: 0 | Q142: 689173 | R142: 20993.83 | S142: 45 | T142: 0 | U142: 0 | V142: 0 | W142: 0 | X142: 20 | Y142: 245 | Z142: 25 | AA142: 0 | AB142: 0 | AC142: 0 | AD142: 0 | AE142: 0 | AF142: 0 | AG142: 0 | AI142: 67821 | AJ142: 0 | AL142: 0 | AM142: 0 | AO142: 0 | AP142: 20993.83 | AR142: 0 | AS142: 0 | AU142: 0 | AV142: 0 | AX142: 621352
A143: 216 | B143: 18 | C143: 00 | D143: 000 | E143: 001 | F143: 000 | G143: 021-001 | H143: Dirección Y Coordinación | K143: Evento | L143: 720 | M143: 527 | N143: 193 | O143: =SUM(T143:AE143) -> 95 | P143: 19713706 | Q143: 19770468 | R143: 8489259.85 | S143: -527 | T143: 14 | U143: 0 | V143: 16 | W143: 0 | X143: 15 | Y143: 0 | Z143: 18 | AA143: 0 | AB143: 16 | AC143: 0 | AD143: 16 | AE143: 0 | AF143: 0 | AG143: 95229.24 | AH143: 726100.07 | AI143: 0 | AJ143: 196261.32 | AK143: 752900 | AL143: 0 | AM143: 396357.04 | AN143: 813819.36 | AO143: 0 | AP143: 413139.57 | AQ143: 770650 | AR143: -33931 | AS143: 1379654.93 | AT143: 748504.84 | AU143: 0 | AV143: 1457493.48 | AW143: 739150 | AX143: 0
A144: 216 | B144: 18 | C144: 00 | D144: 000 | E144: 001 | F144: 000 | I144: 021-001-0001 | J144: Dirección Y Coordinación | K144: Evento | L144: 720 | M144: 527 | N144: 193 | O144: =SUM(T144:AE144) -> 95 | P144: 19713706 | Q144: 19770468 | R144: 8489259.85 | S144: -527 | T144: 14 | U144: 0 | V144: 16 | W144: 0 | X144: 15 | Y144: 0 | Z144: 18 | AA144: 0 | AB144: 16 | AC144: 0 | AD144: 16 | AE144: 0 | AF144: 0 | AG144: 95229.24 | AH144: 726100.07 | AI144: 0 | AJ144: 196261.32 | AK144: 752900 | AL144: 0 | AM144: 396357.04 | AN144: 813819.36 | AO144: 0 | AP144: 413139.57 | AQ144: 770650 | AR144: -33931 | AS144: 1379654.93 | AT144: 748504.84 | AU144: 0 | AV144: 1457493.48 | AW144: 739150 | AX144: 0
A145: 216 | B145: 18 | C145: 00 | D145: 000 | E145: 002 | F145: 000 | G145: 021-002 | H145: Conductores Beneficiados Con Servicios De Vigilancia Y Asistencia Vial | K145: Persona | L145: 318887 | M145: -25143 | N145: 344030 | O145: =SUM(T145:AE145) -> 173923 | P145: 29569131 | Q145: 29512369 | R145: 19517699.34 | S145: 25143 | T145: 28660 | U145: 0 | V145: 28125 | W145: 0 | X145: 27466 | Y145: 0 | Z145: 31898 | AA145: 0 | AB145: 29777 | AC145: 0 | AD145: 27997 | AE145: 0 | AF145: 0 | AG145: 2855 | AH145: 3081984.32 | AI145: 0 | AJ145: 262925 | AK145: 3041960 | AL145: 0 | AM145: 347978.61 | AN145: 3040452.52 | AO145: 0 | AP145: 290617.71 | AQ145: 3032035 | AR145: 33931 | AS145: 267075.7 | AT145: 3023212.42 | AU145: 0 | AV145: 124304.5 | AW145: 3002298.56 | AX145: 0
A146: 216 | B146: 18 | C146: 00 | D146: 000 | E146: 002 | F146: 000 | I146: 021-002-0001 | J146: Personas Capacitadas En El Programa De Educación Y Seguridad Vial | K146: Persona | L146: 23100 | M146: 3100 | N146: 20000 | O146: =SUM(T146:AE146) -> 11305 | P146: 23000 | Q146: 23000 | R146: 1862.5 | S146: -3100 | T146: 885 | U146: 0 | V146: 1977 | W146: 0 | X146: 1408 | Y146: 0 | Z146: 2527 | AA146: 0 | AB146: 2335 | AC146: 0 | AD146: 2173 | AE146: 0 | AF146: 0 | AG146: 0 | AI146: 0 | AJ146: 0 | AL146: 0 | AM146: 0 | AO146: 0 | AP146: 1862.5 | AR146: 0 | AS146: 0 | AU146: 0 | AV146: 0 | AX146: 0
A147: 216 | B147: 18 | C147: 00 | D147: 000 | E147: 002 | F147: 000 | I147: 021-002-0002 | J147: Elementos Formados Como Brigadas De Protección Y Seguridad Vial En Carretera | K147: Persona | L147: 107 | M147: -343 | N147: 450 | O147: =SUM(T147:AE147) -> 0 | P147: 320400 | Q147: 320400 | R147: 253445 | S147: 343 | T147: 0 | U147: 0 | V147: 0 | W147: 0 | X147: 0 | Y147: 0 | Z147: 0 | AA147: 0 | AB147: 0 | AC147: 0 | AD147: 0 | AE147: 0 | AF147: 0 | AG147: 0 | AI147: 0 | AJ147: 232605 | AL147: 0 | AM147: 0 | AO147: 0 | AP147: 20840 | AR147: 0 | AS147: 0 | AU147: 0 | AV147: 0 | AX147: 0
A148: 216 | B148: 18 | C148: 00 | D148: 000 | E148: 002 | F148: 000 | I148: 021-002-0003 | J148: Conductores Atendidos Con Servicios De Seguridad Y Asistencia Vial En Carretera | K148: Persona | L148: 64680 | M148: -110 | N148: 64790 | O148: =SUM(T148:AE148) -> 34051 | P148: 639450 | Q148: 613450 | R148: 240744.45 | S148: 110 | T148: 5389 | U148: 0 | V148: 4890 | W148: 0 | X148: 5850 | Y148: 0 | Z148: 6475 | AA148: 0 | AB148: 6014 | AC148: 0 | AD148: 5433 | AE148: 0 | AF148: 0 | AG148: 2855 | AI148: 0 | AJ148: 650 | AL148: 0 | AM148: 129306.61 | AO148: 0 | AP148: 43065 | AR148: 0 | AS148: 42802.84 | AU148: 0 | AV148: 22065 | AX148: 0
A149: 216 | B149: 18 | C149: 00 | D149: 000 | E149: 002 | F149: 000 | I149: 021-002-0004 | J149: Servicios De Regulación Para Beneficio De Conductores Que Transitan En Carretera | K149: Evento | L149: 7710 | M149: -4965 | N149: 12675 | O149: =SUM(T149:AE149) -> 5737 | P149: 25743932 | Q149: 25881714 | R149: 18221942.82 | S149: 4965 | T149: 780 | U149: 0 | V149: 695 | W149: 0 | X149: 822 | Y149: 0 | Z149: 1228 | AA149: 0 | AB149: 1160 | AC149: 0 | AD149: 1052 | AE149: 0 | AF149: 0 | AG149: 0 | AH149: 3081984.32 | AI149: 0 | AJ149: 0 | AK149: 3041960 | AL149: 0 | AM149: 0 | AN149: 3040452.52 | AO149: 0 | AP149: 0 | AQ149: 3032035 | AR149: 33931 | AS149: 0 | AT149: 3023212.42 | AU149: 0 | AV149: 0 | AW149: 3002298.56 | AX149: 0
A150: 216 | B150: 18 | C150: 00 | D150: 000 | E150: 002 | F150: 000 | I150: 021-002-0005 | J150: Personas Atendidas Telefónicamente Por Medio Del Sistema 1520 (Emergencia Vial) | K150: Persona | L150: 231000 | M150: -27790 | N150: 258790 | O150: =SUM(T150:AE150) -> 128567 | P150: 60000 | Q150: 60000 | R150: 0 | S150: 27790 | T150: 22386 | U150: 0 | V150: 21258 | W150: 0 | X150: 20208 | Y150: 0 | Z150: 22896 | AA150: 0 | AB150: 21428 | AC150: 0 | AD150: 20391 | AE150: 0 | AF150: 0 | AG150: 0 | AI150: 0 | AJ150: 0 | AL150: 0 | AM150: 0 | AO150: 0 | AP150: 0 | AR150: 0 | AS150: 0 | AU150: 0 | AV150: 0 | AX150: 0
A151: 216 | B151: 18 | C151: 00 | D151: 000 | E151: 002 | F151: 000 | I151: 021-002-0006 | J151: Boleta De Llamada De Atención A Conductores Infractores | K151: Documento | L151: 3234 | M151: 296 | N151: 2938 | O151: =SUM(T151:AE151) -> 1348 | P151: 2714475 | Q151: 2545931 | R151: 757704.57 | S151: -296 | T151: 75 | U151: 0 | V151: 146 | W151: 0 | X151: 289 | Y151: 0 | Z151: 401 | AA151: 0 | AB151: 220 | AC151: 0 | AD151: 217 | AE151: 0 | AF151: 0 | AG151: 0 | AI151: 0 | AJ151: 29670 | AL151: 0 | AM151: 218672 | AO151: 0 | AP151: 200100.21 | AR151: 0 | AS151: 207022.86 | AU151: 0 | AV151: 102239.5 | AX151: 0
A152: 216 | B152: 18 | C152: 00 | D152: 000 | E152: 002 | F152: 000 | I152: 021-002-0007 | J152: Investigaciones Realizadas De Accidentes De Tránsito En Carreteras | K152: Evento | L152: 37 | M152: -63 | N152: 100 | O152: =SUM(T152:AE152) -> 19 | P152: 67874 | Q152: 67874 | R152: 42000 | S152: 63 | T152: 2 | U152: 0 | V152: 2 | W152: 0 | X152: 2 | Y152: 0 | Z152: 5 | AA152: 0 | AB152: 4 | AC152: 0 | AD152: 4 | AE152: 0 | AF152: 0 | AG152: 0 | AI152: 0 | AJ152: 0 | AL152: 0 | AM152: 0 | AO152: 0 | AP152: 24750 | AR152: 0 | AS152: 17250 | AU152: 0 | AV152: 0 | AX152: 0
A153: 217 | B153: 20 | C153: 00 | D153: 000 | E153: 001 | F153: 000 | G153: 000-022 | H153: Dirección Y Coordinación | K153: Evento | L153: 263 | M153: 10 | N153: 253 | O153: =SUM(T153:AE153) -> 60 | P153: 50492933 | Q153: 43183748 | R153: 14406307.75 | S153: 0 | T153: 0 | U153: 0 | V153: 20 | W153: 0 | X153: 13 | Y153: 0 | Z153: 15 | AA153: -10 | AB153: 14 | AC153: 0 | AD153: 8 | AE153: 0 | AF153: 0 | AG153: 29146.4 | AH153: 1730697.93 | AI153: 0 | AJ153: 168554.18 | AK153: 1748716.77 | AL153: 0 | AM153: 913356.17 | AN153: 1683447.59 | AO153: 0 | AP153: 839634.78 | AQ153: 1548034.42 | AR153: 0 | AS153: 1352215.74 | AT153: 1692058.48 | AU153: 0 | AV153: 1155990.94 | AW153: 1544454.35 | AX153: -7309185
A154: 217 | B154: 20 | C154: 00 | D154: 000 | E154: 001 | F154: 000 | I154: 000-022-0001 | J154: Dirección Y Coordinación | K154: Evento | L154: 263 | M154: 10 | N154: 253 | O154: =SUM(T154:AE154) -> 60 | P154: 50492933 | Q154: 43183748 | R154: 14406307.75 | S154: 0 | T154: 0 | U154: 0 | V154: 20 | W154: 0 | X154: 13 | Y154: 0 | Z154: 15 | AA154: -10 | AB154: 14 | AC154: 0 | AD154: 8 | AE154: 0 | AF154: 0 | AG154: 29146.4 | AH154: 1730697.93 | AI154: 0 | AJ154: 168554.18 | AK154: 1748716.77 | AL154: 0 | AM154: 913356.17 | AN154: 1683447.59 | AO154: 0 | AP154: 839634.78 | AQ154: 1548034.42 | AR154: 0 | AS154: 1352215.74 | AT154: 1692058.48 | AU154: 0 | AV154: 1155990.94 | AW154: 1544454.35 | AX154: -7309185
A155: 217 | B155: 11 | C155: 00 | D155: 000 | E155: 002 | F155: 000 | G155: 017-005 | H155: Red Vial Con Servicios De Mantenimiento | K155: Kilómetro | L155: 219 | M155: 132 | N155: 87 | O155: =SUM(T155:AE155) -> 36 | P155: 23113645 | Q155: 21520670 | R155: 2336436.81 | S155: -127 | T155: 0 | U155: 0 | V155: 9 | W155: 0 | X155: 8 | Y155: -3 | Z155: 8 | AA155: -2 | AB155: 8 | AC155: 0 | AD155: 8 | AE155: 0 | AF155: 0 | AG155: 0 | AH155: 381209.74 | AI155: 0 | AJ155: 0 | AK155: 402500 | AL155: 0 | AM155: 0 | AN155: 402500 | AO155: 0 | AP155: 0 | AQ155: 363700 | AR155: 0 | AS155: 9860 | AT155: 397000 | AU155: 0 | AV155: 6667.07 | AW155: 373000 | AX155: -1592975
A156: 217 | B156: 11 | C156: 00 | D156: 000 | E156: 002 | F156: 000 | I156: 017-005-0001 | J156: Red Vial Con Servicios De Mantenimiento | K156: Kilómetro | L156: 219 | M156: 132 | N156: 87 | O156: =SUM(T156:AE156) -> 36 | P156: 15037645 | Q156: 8791543 | R156: 16527.07 | S156: -127 | T156: 0 | U156: 0 | V156: 9 | W156: 0 | X156: 8 | Y156: -3 | Z156: 8 | AA156: -2 | AB156: 8 | AC156: 0 | AD156: 8 | AE156: 0 | AF156: 0 | AG156: 0 | AI156: 0 | AJ156: 0 | AL156: 0 | AM156: 0 | AO156: 0 | AP156: 0 | AR156: 0 | AS156: 9860 | AU156: 0 | AV156: 6667.07 | AX156: -6246102
A157: 217 | B157: 11 | C157: 00 | D157: 000 | E157: 002 | F157: 000 | I157: 017-005-0002 | J157: Dirección Y Coordinación (Convoyes) | K157: Evento | L157: 128 | M157: -18 | N157: 146 | O157: =SUM(T157:AE157) -> 68 | P157: 8076000 | Q157: 12729127 | R157: 2319909.74 | S157: 10 | T157: 0 | U157: 0 | V157: 18 | W157: 0 | X157: 10 | Y157: 8 | Z157: 10 | AA157: 0 | AB157: 11 | AC157: 0 | AD157: 11 | AE157: 0 | AF157: 0 | AG157: 0 | AH157: 381209.74 | AI157: 0 | AJ157: 0 | AK157: 402500 | AL157: 0 | AM157: 0 | AN157: 402500 | AO157: 0 | AP157: 0 | AQ157: 363700 | AR157: 0 | AS157: 0 | AT157: 397000 | AU157: 0 | AV157: 0 | AW157: 373000 | AX157: 4653127
A158: 217 | B158: 94 | C158: 11 | D158: 000 | E158: 001 | F158: 000 | G158: 000-048 | H158: Intervenciones Realizadas Para La Atención De Daños Provocados Por Depresión Tropical Eta | K158: Kilómetro | L158: 0 | M158: 0 | N158: 0 | O158: =SUM(T158:AE158) -> 0 | P158: 0 | Q158: 0 | R158: 0 | S158: 0 | T158: 0 | U158: 0 | V158: 0 | W158: 0 | X158: 0 | Y158: 0 | Z158: 0 | AA158: 0 | AB158: 0 | AC158: 0 | AD158: 0 | AE158: 0 | AF158: 0 | AG158: 0 | AH158: 0 | AI158: 0 | AJ158: 0 | AK158: 0 | AL158: 0 | AM158: 0 | AN158: 0 | AO158: 0 | AP158: 0 | AQ158: 0 | AR158: 0 | AS158: 0 | AU158: 0 | AV158: 0 | AX158: 0
A159: 217 | B159: 94 | C159: 11 | D159: 000 | E159: 001 | F159: 000 | I159: 000-048-0001 | J159: Intervenciones Realizadas Para La Atención De Daños Provocados Por Depresión Tropical Eta | K159: Kilómetro | L159: 0 | M159: 0 | N159: 0 | O159: =SUM(T159:AE159) -> 0 | P159: 0 | Q159: 0 | R159: 0 | S159: 0 | T159: 0 | U159: 0 | V159: 0 | W159: 0 | X159: 0 | Y159: 0 | Z159: 0 | AA159: 0 | AB159: 0 | AC159: 0 | AD159: 0 | AE159: 0 | AF159: 0 | AG159: 0 | AI159: 0 | AJ159: 0 | AL159: 0 | AM159: 0 | AO159: 0 | AP159: 0 | AR159: 0 | AS159: 0 | AU159: 0 | AV159: 0 | AX159: 0
A160: 217 | B160: 94 | C160: 14 | D160: 000 | E160: 001 | F160: 000 | G160: 000-049 | H160: Intervenciones Realizadas Para La Atención De La Emergencia Por Época Lluviosa, Temporada Ciclónica Y Sistema De Baja Presión | K160: Kilómetro | L160: 0 | M160: -8 | N160: 8 | O160: =SUM(T160:AE160) -> 8 | P160: 0 | Q160: 8902160 | R160: 0 | S160: 0 | T160: 0 | U160: 0 | V160: 0 | W160: 0 | X160: 0 | Y160: 0 | Z160: 0 | AA160: 0 | AB160: 0 | AC160: 0 | AD160: 0 | AE160: 8 | AF160: 0 | AG160: 0 | AH160: 0 | AI160: 0 | AJ160: 0 | AK160: 0 | AL160: 0 | AM160: 0 | AN160: 0 | AO160: 0 | AP160: 0 | AQ160: 0 | AR160: 0 | AS160: 0 | AU160: 0 | AV160: 0 | AX160: 8902160
A161: 217 | B161: 94 | C161: 14 | D161: 000 | E161: 001 | F161: 000 | I161: 000-049-0001 | J161: Intervenciones Realizadas Para La Atención De La Emergencia Por Época Lluviosa, Temporada Ciclónica Y Sistema De Baja Presión | K161: Kilómetro | L161: 0 | M161: -8 | N161: 8 | O161: =SUM(T161:AE161) -> 8 | P161: 0 | Q161: 8902160 | R161: 0 | S161: 0 | T161: 0 | U161: 0 | V161: 0 | W161: 0 | X161: 0 | Y161: 0 | Z161: 0 | AA161: 0 | AB161: 0 | AC161: 0 | AD161: 0 | AE161: 8 | AF161: 0 | AG161: 0 | AI161: 0 | AJ161: 0 | AL161: 0 | AM161: 0 | AO161: 0 | AP161: 0 | AR161: 0 | AS161: 0 | AU161: 0 | AV161: 0 | AX161: 8902160
A162: 218 | B162: 19 | C162: 00 | D162: 000 | E162: 001 | F162: 000 | G162: 019-001 | H162: Dirección Y Coordinación | K162: Evento | L162: 225 | M162: 0 | N162: 225 | O162: =SUM(T162:AE162) -> 45 | P162: 50000000 | Q162: 48000000 | R162: 10240471.41 | S162: 0 | T162: 0 | U162: 0 | V162: 0 | W162: 0 | X162: 0 | Y162: 0 | Z162: 10 | AA162: 0 | AB162: 5 | AC162: 0 | AD162: 30 | AE162: 0 | AF162: 0 | AG162: 389124.46 | AH162: 1154345.19 | AI162: 0 | AJ162: 369440.91 | AK162: 1173398.56 | AL162: 0 | AM162: 269462.07 | AN162: 863448.08 | AO162: 0 | AP162: 637441.36 | AQ162: 1336814.17 | AR162: 0 | AS162: 1066603.49 | AT162: 1199571.26 | AU162: 0 | AV162: 583038.11 | AW162: 1197783.75 | AX162: -2000000
A163: 218 | B163: 19 | C163: 00 | D163: 000 | E163: 001 | F163: 000 | I163: 019-001-0001 | J163: Dirección Y Coordinación | K163: Evento | L163: 225 | M163: 0 | N163: 225 | O163: =SUM(T163:AE163) -> 45 | P163: 50000000 | Q163: 48000000 | R163: 10240471.41 | S163: 0 | T163: 0 | U163: 0 | V163: 0 | W163: 0 | X163: 0 | Y163: 0 | Z163: 10 | AA163: 0 | AB163: 5 | AC163: 0 | AD163: 30 | AE163: 0 | AF163: 0 | AG163: 389124.46 | AH163: 1154345.19 | AI163: 0 | AJ163: 369440.91 | AK163: 1173398.56 | AL163: 0 | AM163: 269462.07 | AN163: 863448.08 | AO163: 0 | AP163: 637441.36 | AQ163: 1336814.17 | AR163: 0 | AS163: 1066603.49 | AT163: 1199571.26 | AU163: 0 | AV163: 583038.11 | AW163: 1197783.75 | AX163: -2000000
A164: 218 | B164: 19 | C164: 00 | D164: 000 | E164: 002 | F164: 000 | G164: 019-002 | H164: Familias Beneficiadas Con Subsidios Para La Vivienda | K164: Familia | L164: 17349 | M164: -45 | N164: 17394 | O164: =SUM(T164:AE164) -> 912 | P164: 610666000 | Q164: 610666000 | R164: 40291150 | S164: -27 | T164: 0 | U164: 0 | V164: 0 | W164: 0 | X164: 0 | Y164: 0 | Z164: 0 | AA164: 0 | AB164: 0 | AC164: 45 | AD164: 840 | AE164: 27 | AF164: 0 | AG164: 9544500 | AH164: 0 | AI164: 0 | AJ164: 1331750 | AL164: 0 | AM164: 0 | AO164: 0 | AP164: 0 | AR164: 0 | AS164: 0 | AU164: 0 | AV164: 29414900 | AX164: 0
A165: 218 | B165: 19 | C165: 00 | D165: 000 | E165: 002 | F165: 000 | I165: 019-002-0001 | J165: Familias Con Subsidio Para Adquisición De Lote Con Servicios Básicos | K165: Familia | L165: 360 | M165: 0 | N165: 360 | O165: =SUM(T165:AE165) -> 0 | P165: 12600000 | Q165: 12600000 | R165: 0 | S165: 0 | T165: 0 | U165: 0 | V165: 0 | W165: 0 | X165: 0 | Y165: 0 | Z165: 0 | AA165: 0 | AB165: 0 | AC165: 0 | AD165: 0 | AE165: 0 | AF165: 0 | AG165: 0 | AI165: 0 | AJ165: 0 | AL165: 0 | AM165: 0 | AO165: 0 | AP165: 0 | AR165: 0 | AS165: 0 | AU165: 0 | AV165: 0 | AX165: 0
A166: 218 | B166: 19 | C166: 00 | D166: 000 | E166: 002 | F166: 000 | I166: 019-002-0002 | J166: Familias Con Subsidio Para Adquisición De Lote Con Vivienda | K166: Familia | L166: 430 | M166: 0 | N166: 430 | O166: =SUM(T166:AE166) -> 0 | P166: 15050000 | Q166: 15050000 | R166: 0 | S166: 0 | T166: 0 | U166: 0 | V166: 0 | W166: 0 | X166: 0 | Y166: 0 | Z166: 0 | AA166: 0 | AB166: 0 | AC166: 0 | AD166: 0 | AE166: 0 | AF166: 0 | AG166: 0 | AI166: 0 | AJ166: 0 | AL166: 0 | AM166: 0 | AO166: 0 | AP166: 0 | AR166: 0 | AS166: 0 | AU166: 0 | AV166: 0 | AX166: 0
A167: 218 | B167: 19 | C167: 00 | D167: 000 | E167: 002 | F167: 000 | I167: 019-002-0003 | J167: Familias Con Subsidio Para La Adquisición De Módulo Habitacional En Propiedad Horizontal | K167: Familia | L167: 264 | M167: 0 | N167: 264 | O167: =SUM(T167:AE167) -> 0 | P167: 9254000 | Q167: 9254000 | R167: 0 | S167: 0 | T167: 0 | U167: 0 | V167: 0 | W167: 0 | X167: 0 | Y167: 0 | Z167: 0 | AA167: 0 | AB167: 0 | AC167: 0 | AD167: 0 | AE167: 0 | AF167: 0 | AG167: 0 | AI167: 0 | AJ167: 0 | AL167: 0 | AM167: 0 | AO167: 0 | AP167: 0 | AR167: 0 | AS167: 0 | AU167: 0 | AV167: 0 | AX167: 0
A168: 218 | B168: 19 | C168: 00 | D168: 000 | E168: 002 | F168: 000 | I168: 019-002-0004 | J168: Familias Con Subsidio Para El Mejoramiento, Ampliación Y Reparación De Vivienda | K168: Familia | L168: 1422 | M168: 0 | N168: 1422 | O168: =SUM(T168:AE168) -> 0 | P168: 49546000 | Q168: 49546000 | R168: 0 | S168: 0 | T168: 0 | U168: 0 | V168: 0 | W168: 0 | X168: 0 | Y168: 0 | Z168: 0 | AA168: 0 | AB168: 0 | AC168: 0 | AD168: 0 | AE168: 0 | AF168: 0 | AG168: 0 | AI168: 0 | AJ168: 0 | AL168: 0 | AM168: 0 | AO168: 0 | AP168: 0 | AR168: 0 | AS168: 0 | AU168: 0 | AV168: 0 | AX168: 0
A169: 218 | B169: 19 | C169: 00 | D169: 000 | E169: 002 | F169: 000 | I169: 019-002-0006 | J169: Familias Con Subsidio Para Construcción De Vivienda | K169: Familia | L169: 14873 | M169: -45 | N169: 14918 | O169: =SUM(T169:AE169) -> 912 | P169: 524216000 | Q169: 524216000 | R169: 40291150 | S169: -27 | T169: 0 | U169: 0 | V169: 0 | W169: 0 | X169: 0 | Y169: 0 | Z169: 0 | AA169: 0 | AB169: 0 | AC169: 45 | AD169: 840 | AE169: 27 | AF169: 0 | AG169: 9544500 | AI169: 0 | AJ169: 1331750 | AL169: 0 | AM169: 0 | AO169: 0 | AP169: 0 | AR169: 0 | AS169: 0 | AU169: 0 | AV169: 29414900 | AX169: 0
A170: 218 | B170: 94 | C170: 02 | D170: 000 | E170: 002 | F170: 000 | G170: 000-048 | H170: Intervenciones Realizadas Para La Atención De Daños Provocados Por Depresión Tropical Eta | K170: Kilómetro | L170: 0 | M170: 0 | N170: 0 | O170: =SUM(T170:AE170) -> 0 | P170: 0 | Q170: 0 | R170: 0 | S170: 0 | T170: 0 | U170: 0 | V170: 0 | W170: 0 | X170: 0 | Y170: 0 | Z170: 0 | AA170: 0 | AB170: 0 | AC170: 0 | AD170: 0 | AE170: 0 | AF170: 0 | AG170: 0 | AH170: 0 | AI170: 0 | AJ170: 0 | AL170: 0 | AM170: 0 | AO170: 0 | AP170: 0 | AR170: 0 | AS170: 0 | AU170: 0 | AV170: 0 | AX170: 0
A171: 218 | B171: 94 | C171: 02 | D171: 000 | E171: 002 | F171: 000 | I171: 000-048-0003 | J171: Familias Beneficiadas Con Subsidio Para Construcción De Vivienda Por Atención De Daños | K171: Kilómetro | L171: 0 | M171: 0 | N171: 0 | O171: =SUM(T171:AE171) -> 0 | P171: 0 | Q171: 0 | R171: 0 | S171: 0 | T171: 0 | U171: 0 | V171: 0 | W171: 0 | X171: 0 | Y171: 0 | Z171: 0 | AA171: 0 | AB171: 0 | AC171: 0 | AD171: 0 | AE171: 0 | AF171: 0 | AG171: 0 | AI171: 0 | AJ171: 0 | AL171: 0 | AM171: 0 | AO171: 0 | AP171: 0 | AR171: 0 | AS171: 0 | AU171: 0 | AV171: 0 | AX171: 0
A172: 218 | B172: 94 | C172: 02 | D172: 000 | E172: 002 | F172: 000 | G172: 000-050 | H172: Familias Beneficiadas Con Subsidio Para La Vivienda Por Atención De Daños | K172: Kilómetro | L172: 0 | M172: 0 | N172: 0 | O172: =SUM(T172:AE172) -> 0 | P172: 0 | Q172: 0 | R172: 0 | S172: 0 | T172: 0 | U172: 0 | V172: 0 | W172: 0 | X172: 0 | Y172: 0 | Z172: 0 | AA172: 0 | AB172: 0 | AC172: 0 | AD172: 0 | AE172: 0 | AF172: 0 | AG172: 0 | AH172: 0 | AI172: 0 | AJ172: 0 | AL172: 0 | AM172: 0 | AO172: 0 | AP172: 0 | AR172: 0 | AS172: 0 | AU172: 0 | AV172: 0 | AX172: 0
A173: 218 | B173: 94 | C173: 02 | D173: 000 | E173: 002 | F173: 000 | I173: 000-050-0002 | J173: Familias Beneficiadas Con Subsidio Para Construcción De Vivienda Por Atención De Daños | K173: Kilómetro | L173: 0 | M173: 0 | N173: 0 | O173: =SUM(T173:AE173) -> 0 | P173: 0 | Q173: 0 | R173: 0 | S173: 0 | T173: 0 | U173: 0 | V173: 0 | W173: 0 | X173: 0 | Y173: 0 | Z173: 0 | AA173: 0 | AB173: 0 | AC173: 0 | AD173: 0 | AE173: 0 | AF173: 0 | AG173: 0 | AI173: 0 | AJ173: 0 | AL173: 0 | AM173: 0 | AO173: 0 | AP173: 0 | AR173: 0 | AS173: 0 | AU173: 0 | AV173: 0 | AX173: 0
